{"text_format":"3","workbook":"xlsx","n_sheets":4,"sheets":["menu's","matrixen","Algemene verkoopsvoorwaarden","Reservatievoorstel"],"not_rendered":{"macros":1,"defined_names":5},"read":"whole","date_system":"1900"}

{"sheet":"menu's","index":0,"n_rows":381,"n_cols":34,"rows_kept":381,"merged":[[12,6,12,10],[13,6,13,10],[14,6,14,10],[15,6,15,10],[16,6,16,10],[17,6,17,10],[18,6,18,10],[19,6,19,10],[20,6,20,10],[21,6,21,10],[22,6,22,10],[51,5,52,8],[89,5,89,7],[90,5,90,7],[91,5,91,7],[92,5,92,7],[96,11,96,13],[126,3,126,6]]}
[null,"Deze info is van: Feestzaal Katelijnenhof, Heirweg 172, 8800 Roeselare. Contacteer de zaakvoerder: 0475/618058 - info@katelijnenhof.be - web: www.katelijnenhof.be met foto's en volledige prijslijst."]
[]
[null,{"$f":"\"Rekenmodule menu's. \" & matrixen!B1","v":"Rekenmodule menu's. Prijzen geldig tot 31/08/2023"}]
[]
[{"$nulls":5},"kinderen",null,"kinderen",null,"kinderen"]
[{"$nulls":3},{"$f":"IF(TODAY()>AA11,\"Deze module is niet meer geldig.\",\"Deze prijzen zijn pas geldig van zodra u een hoofdschotel koos.\")","v":"Deze prijzen zijn pas geldig van zodra u een hoofdschotel koos."},null," 0 t.e.m. 2 j. 11 maand",null,"3 j. t.e.m. 5 j. 11 maand",null,"6 j, t.e.m. 11 jr. 11 maand"]
[null,"Totaal per volwassene:",null,{"$f":"SUM(D10:D1023)","v":{"v":0,"d":"0.00"}},null,"0,00",null,{"$f":"ROUND(D7/3,2)","v":{"v":0,"d":"0.00"}},null,{"$f":"ROUND(D7/2,2)","v":{"v":0,"d":"0.00"}}]
[{"$nulls":5},"U kan ook voor de kinderen een kindermenu nemen ( zie een andere rekenmodule)"]
[]
[null,"MAAK STEEDS UW KEUZE in de gele vakken: (scroll naar beneden om meer gegevens in te vullen) Hierboven kunt u uw prijs volgen.",{"$nulls":6},"U vindt verder een overzicht van uw selectie"]
[null,"(klik op de gele balk, vervolgens op het pijltje rechts en scroll ev. naar beneden)",null,"prijs pp",null,"Gedetailleerde info","Selecteer hier uw hapjes:",null,{"$f":"COUNTA(G13:K23)","v":0},"hapjes geselecteerd.",{"$nulls":16},{"$f":"matrixen!B1","v":"Prijzen geldig tot 31/08/2023"}]
[]
[null,"Maak in dit vak uw keuze voor het aperitief",null,{"$f":"VLOOKUP(B13,matrixen!B11:I19,8,FALSE)","v":{"v":0,"d":"0.00"}},null,{"$f":"HLOOKUP($B$13,matrixen!$T$14:$AB$28,2,FALSE)","v":0},{"$nulls":20},{"$f":"matrixen!B11","v":"Maak in dit vak uw keuze voor het aperitief"},{"$nulls":5},{"$f":"matrixen!AM16","v":"BORD"}]
[null,"Maak in dit vak uw keuze voor het aperitief",{"$nulls":3},{"$f":"HLOOKUP($B$13,matrixen!$T$14:$AB$28,3,FALSE)","v":0},{"$nulls":20},{"$f":"matrixen!B12","v":"1 aperitief per persoon"},{"$nulls":5},{"$f":"matrixen!AM17","v":"Bord met rauwe groenten en cocktailsaus (wortel, bloemkool, radijs)"}]
[null,{"$f":"\"U selecteerde tot nu \" & COUNTA(G13:K23)+IF(G24<>\"\",1,0)& \" hapjes.\"","v":"U selecteerde tot nu 0 hapjes."},null,{"$f":"IF(IF(B13=matrixen!N14,(I11-4)*matrixen!I47,I11*matrixen!I47)<0,0,IF(B13=matrixen!N14,(I11-4)*matrixen!I47,I11*matrixen!I47))","v":{"v":0,"d":"0.00"}},null,{"$f":"HLOOKUP($B$13,matrixen!$T$14:$AB$28,4,FALSE)","v":0},{"$nulls":20},{"$f":"matrixen!B13","v":"2 aperitieven per persoon"},{"$nulls":5},{"$f":"matrixen!AM18","v":"Bord met olijven, kaasjes en salamietjes"}]
[null,{"$f":"IF(B13=matrixen!N14,\"U koos receptie E en daar zijn 4 hapjes inbegrepen. Selecteer er dus zeker 4!\",\"\")","v":""},null,{"$f":"IF(F101=0,0,IF(YEAR(F101)=2018,-2,0))","v":{"v":0,"d":"0.00"}},null,{"$f":"HLOOKUP($B$13,matrixen!$T$14:$AB$28,5,FALSE)","v":0},{"$nulls":20},{"$f":"matrixen!B14","v":"Receptie E"},{"$nulls":5},{"$f":"matrixen!AM19","v":"Bord met 3 tapenades (tonijn / pesto spread rosso /zoete peper roomkaas)"}]
[{"$nulls":5},{"$f":"HLOOKUP($B$13,matrixen!$T$14:$AB$28,6,FALSE)","v":0},{"$nulls":20},{"$f":"matrixen!B15","v":"Receptie A"},{"$nulls":5},{"$f":"matrixen!AM20","v":"KOUD"}]
[{"$nulls":5},{"$f":"HLOOKUP($B$13,matrixen!$T$14:$AB$28,7,FALSE)","v":0},{"$nulls":20},{"$f":"matrixen!B16","v":0},{"$nulls":5},{"$f":"matrixen!AM21","v":"crunchy sushi"}]
[null,"Indien een genodigde een extra aperitief bestelt of een aperitief wenst die niet in de prijs begrepen is dan:",{"$nulls":3},{"$f":"HLOOKUP($B$13,matrixen!$T$14:$AB$28,8,FALSE)","v":0},{"$nulls":20},{"$f":"matrixen!B17","v":0},{"$nulls":5},{"$f":"matrixen!AM22","v":"luzerne met gerookte zalm, eitjes van vliegende vis in wasabi"}]
[null,"De gast die niet inbegrepen aperitief bestelt betaalt deze zelf (vb: sterke drank)",{"$nulls":3},{"$f":"HLOOKUP($B$13,matrixen!$T$14:$AB$28,9,FALSE)","v":0},{"$nulls":20},{"$f":"matrixen!B18","v":0},{"$nulls":5},{"$f":"matrixen!AM23","v":"preischeuten met tijgergarnalen en mini tomaat"}]
[null,"De gast die niet inbegrepen aperitief bestelt betaalt deze zelf (vb: sterke drank)",{"$nulls":3},{"$f":"HLOOKUP($B$13,matrixen!$T$14:$AB$28,10,FALSE)","v":0},{"$nulls":20},{"$f":"matrixen!B19","v":0},{"$nulls":5},{"$f":"matrixen!AM24","v":"aperoglaasje parmaham met meloenbolletjes"}]
[null,"De gast die een extra aperitief bestelt betaalt deze zelf",{"$nulls":3},{"$f":"HLOOKUP($B$13,matrixen!$T$14:$AB$28,11,FALSE)","v":0},{"$nulls":26},{"$f":"matrixen!AM25","v":"ganache van foie gras met frambozenconfituur en amandelbrood"}]
[{"$nulls":5},{"$f":"HLOOKUP($B$13,matrixen!$T$14:$AB$28,12,FALSE)","v":0},{"$nulls":26},{"$f":"matrixen!AM26","v":"aperoglaasje parmaham met espuma van mango"}]
[{"$nulls":5},{"$f":"HLOOKUP($B$13,matrixen!$T$14:$AB$28,13,FALSE)","v":0},{"$f":"IF(F20=\"tapenades\", matrixen!AM19 & \" nootjes en chips\",\"\")","v":""},{"$nulls":25},{"$f":"matrixen!AM27","v":"verse oester"}]
[{"$nulls":5},{"$f":"HLOOKUP($B$13,matrixen!$T$14:$AB$28,14,FALSE)","v":0},{"$nulls":20},{"$f":"matrixen!B23","v":"Schuimwijn van het huis (reeds inbegrepen)"},{"$nulls":5},{"$f":"matrixen!AM28","v":"Taboulé met gerookte forel"}]
[{"$nulls":5},{"$f":"HLOOKUP($B$13,matrixen!$T$14:$AB$28,15,FALSE)","v":0},{"$nulls":20},{"$f":"matrixen!B24","v":"Cava"},{"$nulls":5},{"$f":"matrixen!AM29","v":"Haringhapje met curry"}]
[{"$nulls":26},{"$f":"matrixen!B25","v":"Champagne"},{"$nulls":5},{"$f":"matrixen!AM30","v":"Mini bagel met zalm en kruidenkaas"}]
[null,"Stel vanaf hier zelf uw menu's samen!",{"$nulls":24},{"$f":"matrixen!B26","v":0},{"$nulls":5},{"$f":"matrixen!AM31","v":"SOEP"}]
[{"$nulls":32},{"$f":"matrixen!AM32","v":"Kreeftensoep"}]
[null,"I Koud voorgerecht.",{"$nulls":24},{"$f":"matrixen!B44","v":"Maak hier uw keuze voor extra hapjes bij het aperitief"},{"$nulls":5},{"$f":"matrixen!AM33","v":"Aspergeroomsoep met koornbloemblaadjes"}]
[{"$nulls":26},{"$f":"matrixen!B45","v":"Nootjes, chips en zoutkoekjes zoveel u wenst (gratis)"},{"$nulls":5},{"$f":"matrixen!AM34","v":"Pompoensoep (sept. okt. nov.)"}]
[null,"Maak hier uw keuze indien u een koud voorgerecht wenst",null,{"$f":"IFERROR(VLOOKUP(B32,matrixen!A102:J120,10,FALSE),0)","v":{"v":0,"d":"0.00"}},{"$f":"IF(D32>1,1,0)","v":0},{"$f":"IF(B32<>matrixen!$A$102,\" <= Alle koude voorgerechten (behalve het buffet) omvatten één portie, vergezeld van stokbrood.\",\"\")","v":""},{"$nulls":20},{"$f":"matrixen!B46","v":"Rauwe groenten (wortel, bloemkool, cocktailsaus) prijs per persoon:"},{"$nulls":5},{"$f":"matrixen!AM35","v":"Kervelroomsoep met gerookte eend"}]
[null,"Maak hier uw keuze indien u een koud voorgerecht wenst",{"$nulls":24},{"$f":"matrixen!B47","v":"Warme toostjes per stuk"},{"$nulls":5},{"$f":"matrixen!AM36","v":"Preiroomsoep met broccoligarnituur en gebakken spekjes"}]
[null,"Huiswijn, bieren en frisdranken als forfait",null,{"$f":"IF(D32>0,VLOOKUP(B34,matrixen!A123:J125,10,FALSE),0)","v":{"v":0,"d":"0.00"}},{"$nulls":22},{"$f":"matrixen!B48","v":"Koude toostjes per stuk"},{"$nulls":5},{"$f":"matrixen!AM37","v":"Soepje van boschampignons met gerookte paling"}]
[null,"Huiswijn, bieren en frisdranken als forfait",{"$nulls":24},{"$f":"matrixen!B49","v":"aperitiefglaasjes per stuk"},{"$nulls":5},{"$f":"matrixen!AM38","v":"WARM"}]
[null,"II Soepen",{"$nulls":24},{"$f":"matrixen!B50","v":"Oesters per stuk warm of koud"},{"$nulls":5},{"$f":"matrixen!AM39","v":"mini hot-dog"}]
[{"$nulls":26},{"$f":"matrixen!B51","v":"wachtbordje met vispasteitje"},{"$nulls":5},{"$f":"matrixen!AM40","v":"Breydelspek met mosterdroomsaus"}]
[null,"* betekent geschikt voor vegetariers. ",{"$nulls":24},{"$f":"matrixen!B52","v":"wachtbordje van reuzentoost met gerookte zalm"},{"$nulls":5},{"$f":"matrixen!AM41","v":"aperoglaasje scampi"}]
[null,"Maak hier uw keuze indien u soep wenst",null,{"$f":"IFERROR(IF(E44+E32>1,E40/2,E40),0)","v":{"v":0,"d":"0.00"}},{"$f":"IF(D39>1,1,0)","v":0},{"$f":"IF(B39<>matrixen!$A$138,\" <= Soep wordt steeds drie maal bediend.\",\"\")","v":""},{"$nulls":20},{"$f":"matrixen!B53","v":"wachtbordje van lauw slaatje met gerookte zalm en scampi's"},{"$nulls":5},{"$f":"matrixen!AM42","v":"Warme dagvis met curry"}]
[null,"Maak hier uw keuze indien u soep wenst",null,null,{"$f":"VLOOKUP(B39,matrixen!A138:I154,9,FALSE)","v":0},{"$nulls":21},{"$f":"matrixen!B54","v":0},{"$nulls":5},{"$f":"matrixen!AM43","v":"een gevuld toastcupje"}]
[null,"III Warme voorgerechten",{"$nulls":24},{"$f":"matrixen!B55","v":0},{"$nulls":5},{"$f":"matrixen!AM44","v":"oester met champagnesaus "}]
[{"$nulls":26},{"$f":"matrixen!B56","v":0},{"$nulls":5},{"$f":"matrixen!AM45","v":"garnaal in filo"}]
[null,"Alle hiernavolgende visgerechten zijn 99,99% zonder graten !",{"$nulls":24},{"$f":"matrixen!A102","v":"Maak hier uw keuze indien u een koud voorgerecht wenst"},{"$nulls":5},{"$f":"matrixen!AM46","v":"mini croque"}]
[null,"Maak hier uw keuze indien u een warm voorgerecht wenst",null,{"$f":"IFERROR(VLOOKUP(B44,matrixen!A178:J195,10,FALSE),0)","v":{"v":0,"d":"0.00"}},{"$f":"IF(D44>1,1,0)","v":0},{"$f":"IF(B44<>matrixen!$A$178,\" <= Alle warme voorgerechten omvatten één portie, vergezeld van stokbrood.\",\"\")","v":""},{"$nulls":20},{"$f":"matrixen!A103","v":"½ kreeft “en belle vue”"}]
[null,"Maak hier uw keuze indien u een warm voorgerecht wenst",{"$nulls":24},{"$f":"matrixen!A104","v":"Foie gras op 2 wijzen (als pastei en zacht gebakken lever)"}]
[null,"Huiswijn, bieren en frisdranken als forfait",null,{"$f":"IF(D44>0,VLOOKUP(B46,matrixen!A123:J125,10,FALSE),0)","v":{"v":0,"d":"0.00"}},{"$nulls":22},{"$f":"matrixen!A105","v":"Verse ganzenleverpastei van het huis met Xeresgelei"}]
[null,"Huiswijn, bieren en frisdranken als forfait",{"$nulls":24},{"$f":"matrixen!A106","v":"Gek slaatje van de chef met grijze garnalen, gerookte zalm en foie gras"}]
[null,"IV Sorbet",{"$nulls":24},{"$f":"matrixen!A107","v":"Salade van verse grijze gepelde garnalen"}]
[{"$nulls":26},{"$f":"matrixen!A108","v":"Lauw slaatje met scampi's, kwartelei en gerookte zalm"}]
[null,"Maak hier uw keuze indien u een bolletje sorbet als tussengerecht wenst. Kan ook voor het warm voorgerecht gegeven worden.",null,{"$f":"IFERROR(IF(E44+E32>1,E50/2,E50),0)","v":{"v":0,"d":"0.00"}},{"$f":"VLOOKUP(B50,matrixen!A204:J206,10,FALSE)","v":0},{"$nulls":21},{"$f":"matrixen!A109","v":"Gerookte zalm xxxxxxxxx"}]
["In dit kader vindt u de visgerechten als hoofdschotel  *** betekent 3 x bediend, anders 1 portie","Maak hier uw keuze indien u een bolletje sorbet als tussengerecht wenst. Kan ook voor het warm voorgerecht gegeven worden.",{"$nulls":24},{"$f":"matrixen!A110","v":"Meloen met parmaham"}]
["In dit kader vindt u de vleesgerechten als hoofdschotel ","V a) De hoofdschotels. Kies een visgerecht OF een vleesgerecht OF gevogelte.",null,{"$f":"IFERROR(IF(B53=\"\",0,IF(D44+D39+D32 = 0,VLOOKUP(B53,P54:Q60,2,FALSE),0)),0)","v":{"v":0,"d":"0.00"}},null,{"$f":"IF(D52> 0,\"<= Indien u een hoofdschotel naar believen kiest, zonder voorgerecht of soep wordt er een toeslag van \" & matrixen!J212 & \" gerekend.\",\"\")","v":""},{"$nulls":20},{"$f":"matrixen!A111","v":"Gemarineerde zalm met asperges, dille en een rivierkreeftje"}]
["In dit kader vindt u gevogelte als hoofdschotel ",{"$f":"IF(D54+D55+D56>0,IF(B54<>matrixen!A221,'menu''s'!B54,IF(B55<>matrixen!A229,'menu''s'!B55,IF('menu''s'!B56<>matrixen!A249,'menu''s'!B56,\"\"))),\"\")","v":""},{"$nulls":24},{"$f":"matrixen!A112","v":"Zomers slaatje met gebakken kippereepjes + kalfszwezeriken"}]
[{"$f":"C54","v":0},"In dit kader vindt u de visgerechten als hoofdschotel  *** betekent 3 x bediend, anders 1 portie",{"$f":"IF(AND(B54<>matrixen!A221,B54<>\"\"),1,0)","v":0},{"$f":"IFERROR(VLOOKUP(B54,matrixen!A221:J228,10,FALSE),0)","v":{"v":0,"d":"0.00"}},null,{"$f":"IF(D$55+D$56>1,matrixen!A246,\"\")","v":""},{"$nulls":9},{"$f":"matrixen!D213","v":"Jumbo mosselen naar believen"},{"$nulls":10},{"$f":"matrixen!A113","v":"Frivool slaatje van gerookte zalm, St Jacobsvruchten en gepocheerde zalm "}]
[{"$f":"C55","v":0},"In dit kader vindt u de vleesgerechten als hoofdschotel ",{"$f":"IF(AND(B55<>matrixen!A229,B55<>\"\"),1,0)","v":0},{"$f":"IFERROR(VLOOKUP(B55,matrixen!A229:J244,10,FALSE),0)","v":{"v":0,"d":"0.00"}},null,{"$f":"IF(D$55+D$56+$D54>1,matrixen!A247,\"<= Hier moet u één hoofdgerecht - vlees, vis of gevogelte - selecteren evenals een drankformule.\")","v":"<= Hier moet u één hoofdgerecht - vlees, vis of gevogelte - selecteren evenals een drankformule."},{"$nulls":9},{"$f":"matrixen!D214","v":"Gepocheerde zeetong met seizoengarnituur 3/kg"},{"$nulls":10},{"$f":"matrixen!A114","v":"Zomers slaatje met gebakken kippereepjes"}]
[{"$f":"C56","v":0},"In dit kader vindt u gevogelte als hoofdschotel ",{"$f":"IF(AND(B56<>matrixen!A249,B56<>\"\"),1,0)","v":0},{"$f":"IFERROR(VLOOKUP(B56,matrixen!A249:J256,10,FALSE),0)","v":{"v":0,"d":"0.00"}},null,{"$f":"IF(D$55+D$56+D$54>1,matrixen!A248,\"\")","v":""},{"$nulls":9},{"$f":"matrixen!D215","v":"Drieluik van vis roze zalm, groenlandse heilbot en tongfilet "},{"$nulls":10},{"$f":"matrixen!A115","v":"Bordje met  pandalusgarnalen en cocktailsaus"}]
[null,{"$f":"IF(C54+C55+C56>1,\"U mag slechts één keuze (vis - vlees - gevogelte) selecteren!\",\"\")","v":""},null,{"$f":"IF(C54+C55+C56>1,1/0,0)","v":0},{"$nulls":11},{"$f":"matrixen!D216","v":"Ribbetjes 1 portie"},{"$nulls":10},{"$f":"matrixen!A116","v":"Gegarneerde vispastei"}]
["Huiswijn, bieren en frisdranken als forfait","Huiswijn, bieren en frisdranken als forfait",null,{"$f":"IF(D54+D55+D56>0,VLOOKUP(B58,matrixen!A258:J261,10,FALSE),0)","v":{"v":0,"d":"0.00"}},{"$nulls":11},{"$f":"matrixen!D217","v":"Kip aan het spit 1 portie"},{"$nulls":10},{"$f":"matrixen!A117","v":"Tomaat Mozarella"}]
[1,{"$f":"matrixen!A229","v":"In dit kader vindt u de vleesgerechten als hoofdschotel "},{"$nulls":13},{"$f":"matrixen!D218","v":"Varkens côte à l'os"},{"$nulls":10},{"$f":"matrixen!A118","v":"Gepocheerde zalm op frivool slaatje met cocktailsaus"}]
[null,{"$f":"VLOOKUP(1,A54:B59,2,FALSE)","v":"In dit kader vindt u de vleesgerechten als hoofdschotel "},{"$nulls":3},"Saussuggesties passend bij uw gerecht:",{"$nulls":9},{"$f":"B53","v":""},{"$f":"matrixen!J212","v":{"v":3.5,"d":"3.50"}},{"$nulls":9},{"$f":"matrixen!A119","v":"Duo van gerookte zalm en gepocheerde zalm"}]
[null,"V b) Kies uw saus bij uw gerecht. Rechts vindt u passende suggesties. Reeds inbegrepen in de prijs.",{"$nulls":3},{"$f":"VLOOKUP($B$60,matrixen!$A$222:$V$256,13,FALSE)","v":0},null,{"$f":"VLOOKUP(F61,matrixen!$X$222:$AA$246,4,FALSE)","v":0},{"$nulls":18},{"$f":"matrixen!A120","v":{"v":0,"d":"0.00"}}]
[{"$nulls":5},{"$f":"VLOOKUP($B$60,matrixen!$A$222:$V$256,14,FALSE)","v":0},null,{"$f":"VLOOKUP(F62,matrixen!$X$222:$AA$246,4,FALSE)","v":0},{"$nulls":18},{"$f":"matrixen!A121","v":{"v":0,"d":"0.00"}}]
[null,"Nog geen saus geselecteerd",{"$nulls":3},{"$f":"VLOOKUP($B$60,matrixen!$A$222:$V$256,15,FALSE)","v":0},null,{"$f":"VLOOKUP(F63,matrixen!$X$222:$AA$246,4,FALSE)","v":0},{"$nulls":18},{"$f":"matrixen!A122","v":{"v":0,"d":"0.00"}}]
[null,"Nog geen saus geselecteerd",{"$nulls":3},{"$f":"VLOOKUP($B$60,matrixen!$A$222:$V$256,16,FALSE)","v":0},null,{"$f":"VLOOKUP(F64,matrixen!$X$222:$AA$246,4,FALSE)","v":0},{"$nulls":18},{"$f":"matrixen!A123","v":"Huiswijn, bieren en frisdranken als forfait"}]
[{"$nulls":5},{"$f":"VLOOKUP($B$60,matrixen!$A$222:$V$256,17,FALSE)","v":0},null,{"$f":"VLOOKUP(F65,matrixen!$X$222:$AA$246,4,FALSE)","v":0},{"$nulls":18},{"$f":"matrixen!A124","v":"Domaine Joel Delauny Touraine  en/of Château Reynier, Bordeaux superieur,  bieren en frisdranken"}]
[null,"V c) Kies uw aardappelbereiding bij uw hoofdschotel",{"$nulls":3},{"$f":"VLOOKUP($B$60,matrixen!$A$222:$V$256,18,FALSE)","v":0},null,{"$f":"VLOOKUP(F66,matrixen!$X$222:$AA$246,4,FALSE)","v":0},{"$nulls":18},{"$f":"matrixen!A125","v":{"v":0,"d":"0.00"}}]
[null,"Nog geen aardappelbereiding geselecteerd",{"$f":"IF(B67=matrixen!M265,4,0)","v":0},null,null,{"$f":"VLOOKUP($B$60,matrixen!$A$222:$V$256,19,FALSE)","v":0},null,{"$f":"VLOOKUP(F67,matrixen!$X$222:$AA$246,4,FALSE)","v":0},{"$nulls":18},{"$f":"matrixen!A126","v":{"v":0,"d":"0.00"}}]
[null,{"$f":"VLOOKUP(B67,matrixen!M259:P271,4,FALSE)","v":0},{"$nulls":3},{"$f":"VLOOKUP($B$60,matrixen!$A$222:$V$256,20,FALSE)","v":0},null,{"$f":"VLOOKUP(F68,matrixen!$X$222:$AA$246,4,FALSE)","v":0}]
[null,"Nog geen aardappelbereiding geselecteerd",{"$nulls":3},{"$f":"VLOOKUP($B$60,matrixen!$A$222:$V$256,21,FALSE)","v":0},null,{"$f":"VLOOKUP(F69,matrixen!$X$222:$AA$246,4,FALSE)","v":0}]
[null,"Kies hier 4 verschillende warme groenten",{"$nulls":3},{"$f":"VLOOKUP($B$60,matrixen!$A$222:$V$256,22,FALSE)","v":0},null,{"$f":"VLOOKUP(F70,matrixen!$X$222:$AA$246,4,FALSE)","v":0}]
[null,"V d) Kies uw groenten (tenzij u trio van puree koos, want dat geldt ook als groentebereiding)",{"$nulls":3},{"$f":"VLOOKUP($B$60,matrixen!$A$222:$V$256,2,FALSE)","v":0},null,{"$f":"VLOOKUP(F71,matrixen!$X$222:$AA$246,4,FALSE)","v":0},{"$nulls":18},{"$f":"matrixen!A138","v":"Maak hier uw keuze indien u soep wenst"}]
[null,"Kies hier 4 verschillende warme groenten",{"$f":"IF(AND(B72<>matrixen!$M$274,B72<>\"\"),1,0)","v":0},{"$f":"IFERROR(VLOOKUP(B72,matrixen!$M$274:$Q$285,5,FALSE),0)","v":{"v":0,"d":"0.00"}},{"$nulls":22},{"$f":"matrixen!A139","v":"Schaaldierenroomsoep"}]
[null,"Kies hier 4 verschillende warme groenten",{"$f":"IF(AND(B73<>matrixen!$M$274,B73<>\"\"),1,0)","v":0},{"$f":"IFERROR(VLOOKUP(B73,matrixen!$M$274:$Q$285,5,FALSE),0)","v":{"v":0,"d":"0.00"}},{"$nulls":22},{"$f":"matrixen!A140","v":"Noordzeeketeltje"}]
[null,"Kies hier 4 verschillende warme groenten",{"$f":"IF(AND(B74<>matrixen!$M$274,B74<>\"\"),1,0)","v":0},{"$f":"IFERROR(VLOOKUP(B74,matrixen!$M$274:$Q$285,5,FALSE),0)","v":{"v":0,"d":"0.00"}},{"$nulls":11},{"$f":"matrixen!D212","v":{"v":0,"d":"0.00"}},{"$nulls":6},{"$f":"matrixen!K212","v":{"v":0,"d":"0.00"}},{"$nulls":3},{"$f":"matrixen!A141","v":"Romig groentesoepje , geparfumeerd met gerookte kipperfilets"}]
[null,"Kies hier 4 verschillende warme groenten",{"$f":"IF(AND(B75<>matrixen!$M$274,B75<>\"\"),1,0)","v":0},{"$f":"IFERROR(VLOOKUP(B75,matrixen!$M$274:$Q$285,5,FALSE),0)","v":{"v":0,"d":"0.00"}},{"$nulls":18},{"$f":"matrixen!K213","v":{"v":0,"d":"0.00"}},{"$nulls":3},{"$f":"matrixen!A142","v":"Ossenstaartsoep met verse stukjes ossenstaart"}]
[null,"of kies uit één van de volgende assortimenten (geen afwijkingen mogelijk)",{"$nulls":20},{"$f":"matrixen!K214","v":{"v":0,"d":"0.00"}},{"$nulls":3},{"$f":"matrixen!A143","v":"Komkommerroomsoep *"}]
[null,"Kies één van de volgende assortimenten",{"$f":"IF(AND(B77<>matrixen!M287,B77<>\"\"),4,0)","v":0},{"$f":"IF(C67+C72+C73+C74+C75+C77>4,1/0,0)","v":{"v":0,"d":"0.00"}},null,{"$f":"IFERROR(VLOOKUP(B77,matrixen!M287:R292,6,FALSE),0)","v":0},{"$nulls":16},{"$f":"matrixen!K215","v":{"v":0,"d":"0.00"}},{"$nulls":3},{"$f":"matrixen!A144","v":"Aspergeroomsoep met koornbloemblaadjes *"}]
[null,"Kies één van de volgende assortimenten",{"$nulls":20},{"$f":"matrixen!K216","v":{"v":0,"d":"0.00"}},{"$nulls":3},{"$f":"matrixen!A145","v":"Aalsterse soep met toostje onder kaas (= ajuinsoep) *"},{"$nulls":6},{"$f":"matrixen!U176","v":0}]
[null,{"$f":"IF(C67+C72+C73+C74+C75+C77>4,\"Foute keuze, u mag alleen trio van puree of 4 warme groenten of een assortiment selecteren!\",\"\")","v":""},{"$nulls":20},{"$f":"matrixen!K217","v":{"v":0,"d":"0.00"}},{"$nulls":3},{"$f":"matrixen!A146","v":"Pompoensoep (sept. okt. nov.) *"}]
[null,"Selecteer hier uw dessert.",{"$nulls":20},{"$f":"matrixen!K218","v":{"v":0,"d":"0.00"}},{"$nulls":3},{"$f":"matrixen!A147","v":"Kervelroomsoep met gerookte eend"}]
[null,"Nog geen dessert geselecteerd",null,{"$f":"IF(E32+E39+E44>1,E81,E81)","v":{"v":0,"d":"0.00"}},{"$f":"VLOOKUP(B81,dessert,8,FALSE)","v":0},{"$f":"VLOOKUP($B$81,dessert,10,FALSE)","v":0},{"$nulls":9},{"$f":"matrixen!D219","v":{"v":0,"d":"0.00"}},{"$f":"matrixen!J219","v":{"v":0,"d":"0.00"}},{"$nulls":5},{"$f":"matrixen!K219","v":{"v":0,"d":"0.00"}},{"$nulls":3},{"$f":"matrixen!A148","v":"Preiroomsoep met broccoligarnituur en gebakken spekjes"}]
[null,"Nog geen dessert geselecteerd",{"$nulls":3},{"$f":"VLOOKUP($B$81,dessert,11,FALSE)","v":0},{"$nulls":20},{"$f":"matrixen!A149","v":"Selderroomsoep *"}]
[null,{"$f":"IF(B81=matrixen!B71,\"Kies hier nu een aantal dessertjes. 4 zijn reeds inbegrepen. Extra aan € \" & matrixen!I67&\",00/stuk. U selecteerde er tot nu: \"&COUNTA(B84:B90),\"\")","v":""},{"$nulls":3},{"$f":"VLOOKUP($B$81,dessert,12,FALSE)","v":0},{"$nulls":20},{"$f":"matrixen!A150","v":"Tomatenroomsoep *"}]
[{"$nulls":5},{"$f":"VLOOKUP($B$81,dessert,13,FALSE)","v":0},{"$nulls":20},{"$f":"matrixen!A151","v":"Soepje van boschampignons en gerookte paling"},{"$nulls":5},{"$f":"matrixen!M22","v":"Roomijs "}]
[{"$nulls":5},{"$f":"VLOOKUP($B$81,dessert,14,FALSE)","v":0},{"$nulls":20},{"$f":"matrixen!A152","v":"Preisoep met gevogeltereepjes"},{"$nulls":5},{"$f":"matrixen!M23","v":"Bruine chocolademousse"}]
[{"$nulls":5},{"$f":"VLOOKUP($B$81,dessert,15,FALSE)","v":0},{"$nulls":20},{"$f":"matrixen!A153","v":"Wortelsoep *"},{"$nulls":5},{"$f":"matrixen!M24","v":"Pasteis de nata"}]
[{"$nulls":3},{"$f":"IF(COUNTA(B84:B91)*matrixen!I67 - IF(B81=matrixen!B71,matrixen!I67*4,0)<0,0,COUNTA(B84:B91)*matrixen!I67 - IF(B81=matrixen!B71,matrixen!I67*4,0))","v":{"v":0,"d":"0.00"}},null,{"$f":"IF(D87>0,\"U selecteerde meer dan 4 stuks dessert. Vandaar het supplement.\",\"\")","v":""},{"$nulls":20},{"$f":"matrixen!A154","v":"Agnes Sorel-roomsoep met shiitakes"},{"$nulls":5},{"$f":"matrixen!M25","v":"Chocoladebavarois"}]
[{"$nulls":5},{"$f":"IF(AND(D87>0,B81<>matrixen!B71),\"U moet de selectie links wissen. U koos geen dessertbord.\",\"\")","v":""},{"$nulls":26},{"$f":"matrixen!M26","v":"Miserable"}]
[{"$nulls":5},"Late night snacks:",null,"Keuze mogelijkheden:",null,{"$f":"matrixen!A301 & \" aan \" & matrixen!E301 & \" euro\"","v":"Croque uit het vuistje aan 2,8 euro"},{"$nulls":16},{"$f":"matrixen!A178","v":"Maak hier uw keuze indien u een warm voorgerecht wenst"},{"$nulls":5},{"$f":"matrixen!M27","v":"glaasje fruitsla met perensorbet"}]
[{"$nulls":3},{"$f":"IFERROR(VLOOKUP(F90,matrixen!$A$301:$E$305,5,FALSE),0)","v":{"v":0,"d":"0.00"}},{"$nulls":5},{"$f":"matrixen!A302 & \" aan \" & matrixen!E302 & \" euro\"","v":"Pizza Margherita aan 4,5 euro"},{"$nulls":16},{"$f":"matrixen!A179","v":"Scampi's \"maison\" (in kreeftesaus met kerrie)"},{"$nulls":5},{"$f":"matrixen!M28","v":"Witte chocolademousse "}]
[{"$nulls":3},{"$f":"IFERROR(VLOOKUP(F91,matrixen!$A$301:$E$305,5,FALSE),0)","v":{"v":0,"d":"0.00"}},{"$nulls":5},{"$f":"matrixen!A303 & \" aan \" & matrixen!E303 & \" euro\"","v":"Belegde broodjes (2 pp) aan 4,5 euro"},{"$nulls":16},{"$f":"matrixen!A180","v":"Gevarieerd slaatje met gebakken kalfszwezeriken"},{"$nulls":5},{"$f":"matrixen!M29","v":"Roomsoes met warme chocoladesaus "}]
[{"$nulls":3},{"$f":"IFERROR(VLOOKUP(F92,matrixen!$A$301:$E$305,5,FALSE),0)","v":{"v":0,"d":"0.00"}},{"$nulls":5},{"$f":"matrixen!A304 & \" aan \" & matrixen!E304 & \" euro\"","v":"Braadworst aan 3 euro"},{"$nulls":16},{"$f":"matrixen!A181","v":"Met zalm gevulde tongfilets in gekruide roomsaus"},{"$nulls":5},{"$f":"matrixen!M30","v":"Tiramisu"}]
[null,"Selecteer hier uw koffie",null,{"$f":"IFERROR(VLOOKUP(F93,matrixen!$A$301:$E$305,5,FALSE),0)","v":{"v":0,"d":"0.00"}},{"$f":"VLOOKUP(B94,matrixen!B93:I96,8,FALSE)","v":0},{"$nulls":4},{"$f":"matrixen!A305 & \" aan \" & matrixen!E305 & \" euro\"","v":"Scampi (3pp) Nantua met farfale en broccoli aan 4,5 euro"},{"$nulls":16},{"$f":"matrixen!A182","v":"Rolletje van zalm en tong, noordzeegarnalen en een langoustine"},{"$nulls":5},{"$f":"matrixen!M31","v":"Javanais"}]
[null,"Nog geen keuze gemaakt",null,{"$f":"IFERROR(IF(E32+E39+E44>1,0,E93),0)","v":{"v":0,"d":"0.00"}},{"$nulls":22},{"$f":"matrixen!A183","v":"Schelp met zalm-victoria-garnalen en fijne groenten"},{"$nulls":5},{"$f":"matrixen!M32","v":"Gebak peer-caramel "}]
[null,"Nog geen keuze gemaakt",null,{"$f":"IFERROR(VLOOKUP(B$96,matrixen!$A$346:$P$348,15,FALSE),0)","v":{"v":0,"d":"0.00"}},{"$f":"VLOOKUP(B$96,matrixen!$A$346:$P$348,16,FALSE)","v":"één rekening"},"Vegetariërs: ","nee","Speciale dieten: ","nee","Halal bereidingen: ","nee",{"$nulls":15},{"$f":"matrixen!A184","v":"Groenlandse heilbotfilet in kreeftenroomsaus en een rivierkreeftje"},{"$nulls":5},{"$f":"matrixen!M33","v":"mini fruittaartje"}]
[null,"Alle drank na de maaltijd komt op één rekening en wordt door de organisator van het feest betaald",{"$nulls":24},{"$f":"matrixen!A185","v":"Duo van Groenlandse heilbot en scampi's met een snuifje saffraan"}]
[null,"Alle drank na de maaltijd komt op één rekening en wordt door de organisator van het feest betaald",{"$nulls":3},"Feest met discobar: ","nee","Allergenen: ","nee",null,"Voorkeur achtergrondmuziek:","Geen voorkeur",{"$nulls":14},{"$f":"matrixen!A186","v":"Duo van Groenlandse heilbot en St. Jacobsvruchten"}]
[null,"E32+E39+E44",{"$nulls":3},{"$f":"IF(G97=\"ja\",matrixen!A356,\"\")","v":""},null,null,{"$f":"IF($I$97=\"ja\",matrixen!A352,\"\")","v":""},{"$nulls":17},{"$f":"matrixen!A187","v":"Bladerdeeggebakje gevuld met kip en kalfszwezeriken"}]
[{"$nulls":8},{"$f":"IF($I$97=\"ja\",matrixen!A353,\"\")","v":""},{"$nulls":17},{"$f":"matrixen!A188","v":"Bladerdeeggebakje gevuld met kip"}]
[null,"Om een aanvraag naar ons te versturen stuur een mail naar info@katelijnenhof met in bijlage dit bestand vanaf uw harde schijf.",{"$nulls":6},{"$f":"IF($I$97=\"ja\",matrixen!A354,\"\")","v":""},{"$nulls":17},{"$f":"matrixen!A189","v":"Victoriabaarsfilet in preiroomsaus"}]
[{"$nulls":4},"Eventuele datum van het feest:",null,null,"Overzicht van uw selectie:",{"$nulls":18},{"$f":"matrixen!A190","v":"Witte zalmfilet in gekruide roomsaus of in kreeftenroomsaus"}]
[{"$nulls":5},"Het exacte aantal personen en de tafelschikking dient ons meegedeeld te worden de vrijdag van het weekend voordien.",null,{"$f":"IF(B13=matrixen!B11,\"\",B13)","v":""},{"$nulls":3},{"$f":"D13","v":{"v":0,"d":"0.00"}},{"$nulls":14},{"$f":"matrixen!A191","v":"Schelpje met noordzeevis en fijne groenten"}]
[{"$nulls":4},"geraamd aantal volwassenen:",null,null,{"$f":"IF(L103>0,B120,\"\")","v":""},{"$f":"IF(L103>0,\"geldt alleen bij recepties!!!\",\"\")","v":""},null,null,{"$f":"D120","v":{"v":0,"d":"0.00"}},{"$nulls":14},{"$f":"matrixen!A192","v":"Gepocheerde verse roze zalm met bieslooksaus"}]
[{"$nulls":4},"geraamd aantal kinderen 6 j. t.e.m. 11 jr. 11 maand:",{"$nulls":21},{"$f":"matrixen!A193","v":"Halve aardappel met noordzeevis en lauwe grijze garnalen "}]
[{"$nulls":4},"geraamd aantal kinderen 3 j. t.e.m. 5 j. 11 maand:",{"$nulls":21},{"$f":"matrixen!A194","v":{"v":0,"d":"0.00"}}]
[{"$nulls":4},"geraamd aantal kinderen  0 t.e.m. 2 j. 11 maand:",{"$nulls":21},{"$f":"matrixen!A195","v":{"v":0,"d":"0.00"}}]
[{"$nulls":26},{"$f":"matrixen!A166","v":{"v":0,"d":"0.00"}}]
[{"$nulls":4},"uur van aankomst:",{"$nulls":21},{"$f":"matrixen!A198","v":"Selecteer hier uw drank bij het warm voorgerecht (zoniet wordt standaard de huiswijn gekozen)"}]
[{"$nulls":4},"aan tafel om:",null,null,{"$f":"IF(B32=matrixen!A102,\"\",B32)","v":""},{"$nulls":3},{"$f":"D32","v":{"v":0,"d":"0.00"}},{"$nulls":14},{"$f":"matrixen!A123","v":"Huiswijn, bieren en frisdranken als forfait"}]
[{"$nulls":4},"Uw naam:",null,null,{"$f":"IF(L110=0,\"\",B34)","v":""},{"$nulls":3},{"$f":"D34","v":{"v":0,"d":"0.00"}},{"$nulls":14},{"$f":"matrixen!A124","v":"Domaine Joel Delauny Touraine  en/of Château Reynier, Bordeaux superieur,  bieren en frisdranken"}]
[{"$nulls":4},"Adres:",null,null,{"$f":"IF(B39=matrixen!A138,\"\",B39)","v":""},{"$nulls":3},{"$f":"D40","v":{"v":0,"d":"0.00"}},{"$nulls":14},{"$f":"matrixen!A201","v":{"v":0,"d":"0.00"}}]
[{"$nulls":4},"Stad:",null,null,{"$f":"IF(B44=matrixen!A178,\"\",B44)","v":""},{"$nulls":3},{"$f":"D44","v":{"v":0,"d":"0.00"}},{"$nulls":14},{"$f":"matrixen!A202","v":{"v":0,"d":"0.00"}}]
[{"$nulls":4},"Tel nr:",null,null,{"$f":"IF(L113=0,\"\",B46)","v":""},{"$nulls":3},{"$f":"D46","v":{"v":0,"d":"0.00"}},{"$nulls":14},{"$f":"matrixen!A203","v":{"v":0,"d":"0.00"}}]
[{"$nulls":4},"email:",null,null,{"$f":"IF(B50=matrixen!A204,\"\",B50)","v":""},{"$nulls":3},{"$f":"D50","v":{"v":0,"d":"0.00"}},{"$nulls":14},{"$f":"matrixen!A204","v":"Maak hier uw keuze indien u een bolletje sorbet als tussengerecht wenst. Kan ook voor het warm voorgerecht gegeven worden."}]
[{"$nulls":4},"geraamde totalen uit andere rekenbladen:",null,null,{"$f":"IF(OR(B54=matrixen!A221,B54=\"\"),IF(OR(B55=matrixen!A229,B55=\"\"),IF(OR(B56=matrixen!A249,B56=\"\"),\"\",B56),B55),B54)","v":""},{"$nulls":3},{"$f":"D54+D55+D56","v":{"v":0,"d":"0.00"}},{"$nulls":14},{"$f":"matrixen!A205","v":"Bolletje sorbet limoen"}]
[{"$nulls":3},"(vb: kindermenus)",{"$nulls":3},{"$f":"IF(B67=matrixen!M259,\"\",B67)","v":""},null,{"$f":"IF(B63=matrixen!X221,\"\",B63)","v":""},{"$nulls":16},{"$f":"matrixen!A206","v":"Bolletje sorbet framboos"}]
[{"$nulls":4},"Geschat factuurtotaal:",{"$f":"Reservatievoorstel!H14","v":{"v":0,"d":"€ 0.00"}},null,{"$f":"IF(B72=matrixen!$M$274,IF(B77=matrixen!M287,\"\",B77),B72)","v":""},{"$nulls":3},{"$f":"IF(B74=matrixen!$M$274,\"\",B74)","v":""},{"$nulls":14},{"$f":"matrixen!A220","v":{"v":0,"d":"0.00"}}]
[null,"Mogelijke supplementen bij de recepties","(Gebaseerd op de door u ingebrachte gegevens)",{"$nulls":4},{"$f":"IF(B73=matrixen!$M$274,\"\",B73)","v":""},{"$nulls":3},{"$f":"IF(B75=matrixen!$M$274,\"\",B75)","v":""},{"$nulls":14},{"$f":"matrixen!A221","v":"In dit kader vindt u de visgerechten als hoofdschotel  *** betekent 3 x bediend, anders 1 portie"}]
[{"$nulls":7},{"$f":"IF(L119=0,\"\",B58)","v":""},{"$nulls":3},{"$f":"D58","v":{"v":0,"d":"0.00"}},{"$nulls":14},{"$f":"matrixen!A222","v":"Jumbo mosselen naar believen"}]
[null,"Schuimwijn van het huis (reeds inbegrepen)",null,{"$f":"VLOOKUP(B120,matrixen!B23:I26,8,FALSE)","v":{"v":0,"d":"0.00"}},null,"korting bij contante betaling:",null,{"$f":"IF(B81=matrixen!B66,\"\",B81)","v":"Nog geen dessert geselecteerd"},{"$nulls":3},{"$f":"D81","v":{"v":0,"d":"0.00"}},{"$nulls":14},{"$f":"matrixen!A223","v":"Gepocheerde zeetong met seizoengarnituur 3/kg"}]
[null,"Schuimwijn van het huis (reeds inbegrepen)",{"$nulls":3},{"$f":"F117*0.02","v":{"v":0,"d":"€ 0.00"}},null,{"$f":"IF(B94=matrixen!B93,\"\",B94)","v":""},{"$nulls":3},{"$f":"D93","v":{"v":0,"d":"0.00"}},{"$nulls":14},{"$f":"matrixen!A224","v":"Drieluik van vis roze zalm, groenlandse heilbot en tongfilet "}]
[{"$nulls":4},"saldo:",{"$f":"F117-F121","v":{"v":0,"d":"€ 0.00"}},null,"Keuze drank na de maaltijd:",{"$nulls":3},{"$f":"E95","v":"één rekening"},{"$nulls":14},{"$f":"matrixen!A225","v":"Groenlandse heilbotfilet in kreeftenroomsaus met groenten***"}]
[{"$nulls":26},{"$f":"matrixen!A226","v":"Witte zalmfilet in gekruide roomsaus***"}]
[{"$nulls":4},"Reden feest:",{"$nulls":21},{"$f":"matrixen!A227","v":"Victoriabaarsfilet in preiroomsaus***"}]
[{"$nulls":4},"Opmerking:",{"$nulls":21},{"$f":"matrixen!A228","v":"Gepocheerde zalm ***"}]
[null,"Gaat u akkoord met de algemene verkoopsvoorwaarden?",null,"ja",{"$nulls":22},{"$f":"matrixen!A229","v":"In dit kader vindt u de vleesgerechten als hoofdschotel "}]
[null,"Voorkeur tafelschikking: ",null,"geen voorkeur",{"$nulls":22},{"$f":"matrixen!A230","v":"Filet pur (Holstein)"}]
[null,"Wijze van betaling: ",{"$nulls":24},{"$f":"matrixen!A231","v":"Buffet met côte à l’os, 3 sausen en roerbakgroenten"}]
[null,"Betaling op de dag zelf (cash of bancontact), u bekomt 2% korting op het totaal",{"$nulls":24},{"$f":"matrixen!A232","v":"Lamsfilet"}]
[{"$nulls":26},{"$f":"matrixen!A233","v":"Kalfsgebraad"}]
[null,null,"Wenst u een factuur ? ","nee",{"$nulls":22},{"$f":"matrixen!A234","v":"Rosbief (Belgisch wit-blauw)"}]
[null,null,{"$f":"\"Wenst u exclusiviteit voor het volledige domein mits meerprijs van € \" & matrixen!F270 & \" ? \"","v":"Wenst u exclusiviteit voor het volledige domein mits meerprijs van € 750 ? "},"nee",null,{"$f":"IF(D132=\"ja\",matrixen!F270,0)","v":0},{"$nulls":20},{"$f":"matrixen!A235","v":"Variatie van vlees  roastbeef,  varkensfilet en lamsnootjes"}]
[{"$nulls":26},{"$f":"matrixen!A236","v":"Varkenshaasjes"}]
[{"$nulls":26},{"$f":"matrixen!A237","v":"Varkens côte à l'os"}]
[{"$nulls":26},{"$f":"matrixen!A238","v":"Varkensgebraad "}]
[{"$nulls":26},{"$f":"matrixen!A239","v":"Duivelsgebraad"}]
[{"$nulls":26},{"$f":"matrixen!A240","v":"Ardeens gebraad"}]
[{"$nulls":26},{"$f":"matrixen!A241","v":"Kasselrib "}]
[{"$nulls":26},{"$f":"matrixen!A242","v":"Ribbetjes 1 portie"}]
[]
[{"$nulls":26},{"$f":"matrixen!A249","v":"In dit kader vindt u gevogelte als hoofdschotel "}]
[{"$nulls":26},{"$f":"matrixen!A250","v":"Eendenborstfilet"}]
[{"$nulls":26},{"$f":"matrixen!A251","v":"Kalkoen verrijkt met verse kreeft"}]
[{"$nulls":26},{"$f":"matrixen!A252","v":"Parelhoen"}]
[{"$nulls":26},{"$f":"matrixen!A253","v":"Kippenfilet met grijze garnalen "}]
[{"$nulls":26},{"$f":"matrixen!A254","v":"Kalkoenfilet"}]
[{"$nulls":26},{"$f":"matrixen!A255","v":"Kippenfilet"}]
[{"$nulls":26},{"$f":"matrixen!A256","v":"Kip aan het spit 1 portie"}]
[]
[]
[]
[]
[]
[{"$nulls":26},{"$f":"matrixen!A258","v":"Selecteer hier uw drank bij het hoofdgerecht (zoniet wordt standaard de huiswijn gekozen)"}]
[{"$nulls":26},{"$f":"matrixen!A259","v":"Huiswijn, bieren en frisdranken als forfait"}]
[{"$nulls":26},{"$f":"matrixen!A260","v":"Domaine Joel Delauny Touraine  en/of Château Reynier, Bordeaux superieur,  bieren en frisdranken"}]
[{"$nulls":26},{"$f":"matrixen!A261","v":{"v":0,"d":"0.00"}}]
[]
[{"$nulls":26},{"$f":"matrixen!X221","v":"Nog geen saus geselecteerd"}]
[{"$nulls":26},{"$f":"matrixen!X222","v":"kreeftsaus met groentebrunoise"}]
[{"$nulls":26},{"$f":"matrixen!X223","v":"gekruide roomsaus"}]
[{"$nulls":26},{"$f":"matrixen!X224","v":"garnalenroomsaus"}]
[{"$nulls":26},{"$f":"matrixen!X225","v":"kreeftsaus zonder groenten"}]
[{"$nulls":26},{"$f":"matrixen!X226","v":"saffraansaus"}]
[{"$nulls":26},{"$f":"matrixen!X227","v":"preiroomsaus"}]
[{"$nulls":26},{"$f":"matrixen!X228","v":"mosterdsausje met gefruite prei"}]
[{"$nulls":26},{"$f":"matrixen!X229","v":"bieslooksaus"}]
[{"$nulls":26},{"$f":"matrixen!X230","v":"bearnaise"}]
[{"$nulls":26},{"$f":"matrixen!X231","v":"romige portosaus"}]
[{"$nulls":26},{"$f":"matrixen!X232","v":"pepersaus"}]
[{"$nulls":26},{"$f":"matrixen!X233","v":"grootmoeders wijze"}]
[{"$nulls":26},{"$f":"matrixen!X234","v":"blackwell"}]
[{"$nulls":26},{"$f":"matrixen!X235","v":"mosterd en look"}]
[{"$nulls":26},{"$f":"matrixen!X236","v":"fijne groentesaus"}]
[{"$nulls":26},{"$f":"matrixen!X237","v":"bordelaise"}]
[{"$nulls":26},{"$f":"matrixen!X238","v":"fijne kruidensaus"}]
[{"$nulls":26},{"$f":"matrixen!X239","v":"witte mosterdsaus"}]
[{"$nulls":26},{"$f":"matrixen!X240","v":"jagerssaus"}]
[{"$nulls":26},{"$f":"matrixen!X241","v":"champignonroomsaus"}]
[{"$nulls":26},{"$f":"matrixen!X242","v":"koude sausjes inbegrepen"}]
[{"$nulls":26},{"$f":"matrixen!X243","v":"geen saus voorzien"}]
[{"$nulls":26},{"$f":"matrixen!X244","v":"geen saus nodig"}]
[{"$nulls":26},{"$f":"matrixen!X245","v":"sinaasappelsaus"}]
[]
[{"$nulls":26},{"$f":"matrixen!M259","v":"Nog geen aardappelbereiding geselecteerd"}]
[{"$nulls":26},{"$f":"matrixen!M260","v":"kroketjes"}]
[{"$nulls":26},{"$f":"matrixen!M261","v":"friet"}]
[{"$nulls":26},{"$f":"matrixen!M262","v":"roomaardappel"}]
[{"$nulls":26},{"$f":"matrixen!M263","v":"aardappel in de pel"}]
[{"$nulls":26},{"$f":"matrixen!M264","v":"ovenaardappel"}]
[{"$nulls":26},{"$f":"matrixen!M265","v":"trio van puree"}]
[{"$nulls":26},{"$f":"matrixen!M266","v":"rijst"}]
[{"$nulls":26},{"$f":"matrixen!M267","v":"koude aardappelbrunoise"}]
[{"$nulls":26},{"$f":"matrixen!M268","v":"krielaardappeltjes"}]
[{"$nulls":26},{"$f":"matrixen!M269","v":"puree"}]
[{"$nulls":26},{"$f":"matrixen!M270","v":"tijmaardappelen"}]
[{"$nulls":26},{"$f":"matrixen!M271","v":"rozemarijnaardappelen"}]
[]
[]
[{"$nulls":26},{"$f":"matrixen!M274","v":"Kies hier 4 verschillende warme groenten"}]
[{"$nulls":26},{"$f":"matrixen!M275","v":"champignons op z'n geheel"}]
[{"$nulls":26},{"$f":"matrixen!M276","v":"witloof"}]
[{"$nulls":26},{"$f":"matrixen!M277","v":"erwten"}]
[{"$nulls":26},{"$f":"matrixen!M278","v":"wortelen"}]
[{"$nulls":26},{"$f":"matrixen!M279","v":"boontjes (met ui)"}]
[{"$nulls":26},{"$f":"matrixen!M280","v":"boontjes (met speklardons)"}]
[{"$nulls":26},{"$f":"matrixen!M281","v":"boontjes (in spekreepjes supplement)"}]
[{"$nulls":26},{"$f":"matrixen!M282","v":"bloemkool"}]
[{"$nulls":26},{"$f":"matrixen!M283","v":"Broccoli "}]
[{"$nulls":26},{"$f":"matrixen!M284","v":"peer in witte wijn (supplement!)"}]
[{"$nulls":26},{"$f":"matrixen!M285","v":"asperges"}]
[]
[{"$nulls":26},{"$f":"matrixen!M287","v":"Kies één van de volgende assortimenten"}]
[{"$nulls":26},{"$f":"matrixen!M288","v":"roerbakgroenten"}]
[{"$nulls":26},{"$f":"matrixen!M289","v":"gewokte groenten"}]
[{"$nulls":26},{"$f":"matrixen!M290","v":"koude groenten \"klassiek\""}]
[{"$nulls":26},{"$f":"matrixen!M291","v":"koude groenten \"modern\""}]
[{"$nulls":26},{"$f":"matrixen!M292","v":"sla en tomaat (alleen bij kip aan 't spit)"}]
[]
[{"$nulls":26},{"$f":"matrixen!B66","v":0}]
[{"$nulls":26},{"$f":"matrixen!B67","v":"supplement per stukje gebak:"}]
[{"$nulls":26},{"$f":"matrixen!B68","v":0}]
[{"$nulls":26},{"$f":"matrixen!B69","v":"Nog geen dessert geselecteerd"}]
[{"$nulls":26},{"$f":"matrixen!B70","v":"IJstaart ambachtelijk, speciale vorm, smaak naar keuze"}]
[{"$nulls":26},{"$f":"matrixen!B71","v":"Stel hieronder uw mini dessertbordje samen met minstens 4 dessertjes"}]
[{"$nulls":26},{"$f":"matrixen!B72","v":"Coupe met vers fruit en verse slagroom."}]
[{"$nulls":26},{"$f":"matrixen!B73","v":"Aardbeiensoepje met sinaasappel in seizoen"}]
[{"$nulls":26},{"$f":"matrixen!B74","v":"Coupe met aardbeien en verse slagroom."}]
[{"$nulls":26},{"$f":"matrixen!B75","v":"Dame blanche"}]
[{"$nulls":26},{"$f":"matrixen!B76","v":"- frambozentaart"}]
[{"$nulls":26},{"$f":"matrixen!B77","v":"- progres"}]
[{"$nulls":26},{"$f":"matrixen!B78","v":"- fruitgebakje"}]
[{"$nulls":26},{"$f":"matrixen!B79","v":"- biscuit crème fraiche met coulis"}]
[{"$nulls":26},{"$f":"matrixen!B80","v":"- warme appeltaart met een bolletje ijs"}]
[{"$nulls":26},{"$f":"matrixen!B81","v":"- zwarte woudtaart"}]
[{"$nulls":26},{"$f":"matrixen!B82","v":"Sabayon met rood fruit"}]
[{"$nulls":26},{"$f":"matrixen!B83","v":0}]
[{"$nulls":26},{"$f":"matrixen!B84","v":"Basis dessertbuffet met:"}]
[{"$nulls":26},{"$f":"matrixen!B85","v":"Uitgebreid dessertbuffet met:"}]
[{"$nulls":26},{"$f":"matrixen!B86","v":"Uitgebreid en luxueus dessertbuffet met:"}]
[]
[{"$nulls":26},{"$f":"matrixen!B93","v":"Nog geen keuze gemaakt"}]
[{"$nulls":26},{"$f":"matrixen!B94","v":"Koffie 3 X bediend"}]
[{"$nulls":26},{"$f":"matrixen!B95","v":"Koffie 3 X bediend met koekjes"}]
[{"$nulls":26},{"$f":"matrixen!B96","v":"Koffie 3 X bediend met pralines"}]
[]
[{"$nulls":26},{"$f":"matrixen!A346","v":"Alle drank na de maaltijd komt op één rekening en wordt door de organisator van het feest betaald"}]
[{"$nulls":26},{"$f":"matrixen!A347","v":"Elke gast die na de maaltijd een drankje bestelt rekent direct af aan de bar"}]
[{"$nulls":26},{"$f":"matrixen!A348","v":"Forfait voor drank naar believen (alle bieren en frisdranken van de drankkaart in de zaal) na een maaltijd. pp: "}]
[]
[{"$nulls":26},{"$f":"matrixen!A374","v":"ja"}]
[{"$nulls":26},{"$f":"matrixen!A375","v":"nee"}]
[]
[{"$nulls":26},"geen voorkeur"]
[{"$nulls":26},"zoveel mogelijk ronde tafels van 6 à 8 personen"]
[{"$nulls":26},"liever lange tafels ev. In U-vorm of H-vorm."]
[]
[{"$nulls":26},{"$f":"matrixen!A380","v":"Betaling op de dag zelf (cash of bancontact), u bekomt 2% korting op het totaal"}]
[{"$nulls":26},{"$f":"matrixen!A381","v":"Storting op BE 48 4631 1391 2127 min. 7 dagen voor het feest, 2% korting"}]
[{"$nulls":26},{"$f":"matrixen!A382","v":"Betaling na het feest. Gelieve 40 % voorschot te storten op BE48 4631 1391 2127. Geen korting."}]
{"$rows_empty":109}
[{"$nulls":26},{"$f":"matrixen!B216","v":0}]
[{"$nulls":26},{"$f":"matrixen!B217","v":0}]
[{"$nulls":26},{"$f":"matrixen!B218","v":0}]
[{"$nulls":26},{"$f":"matrixen!B219","v":0}]
[{"$nulls":26},{"$f":"matrixen!B220","v":0}]
[{"$nulls":26},{"$f":"matrixen!B221","v":0}]
[{"$nulls":26},{"$f":"matrixen!B222","v":0}]
[{"$nulls":26},{"$f":"matrixen!B223","v":0}]
[{"$nulls":26},{"$f":"matrixen!B224","v":0}]
[{"$nulls":26},{"$f":"matrixen!B225","v":0}]
[{"$nulls":26},{"$f":"matrixen!B226","v":0}]
[{"$nulls":26},{"$f":"matrixen!B227","v":0}]

{"sheet":"matrixen","index":1,"n_rows":523,"n_cols":39,"rows_kept":523,"hidden":true}
[null,"Prijzen geldig tot 31/08/2023",{"$nulls":9},"lam, zwanen enz..  . Met foto suppl.",{"$nulls":3},15]
[{"$nulls":11},"Foto op de taart: suppl. € ",null,null,1,"per stuk taart en € ",null,12," per foto"]
[]
[null,"Minimaal verbruik feest",null,null,1250]
[]
[{"$nulls":7},"De naam van alle gerechten wordt niet automatisch aangepast."]
[{"$nulls":7},"Sommige moeten manueel aangepast worden!"]
[{"$nulls":7},"Op deze pagina staan ze in 't oranje"]
[]
[]
[null,"Maak in dit vak uw keuze voor het aperitief"]
[null,"1 aperitief per persoon",{"$nulls":6},{"v":6,"d":"€ 6.00"}]
[null,"2 aperitieven per persoon",{"$nulls":6},{"v":12,"d":"€ 12.00"}]
[null,"Receptie E",{"$nulls":6},{"v":12.600000000000001,"d":"€ 12.60"},null,"Maak in dit vak uw keuze voor het aperitief","1 aperitief per persoon","2 aperitieven per persoon","Receptie E","Receptie A",0,0,0,0,"Maak in dit vak uw keuze voor het aperitief","1 aperitief per persoon","2 aperitieven per persoon",0,"Receptie E",0,0,0,"Receptie A"]
[null,"Receptie A",{"$nulls":6},{"v":10,"d":"€ 10.00"},null,null,"1 per persoon,  ","2 per persoon,  ","Uitgebreide receptie","Basis receptie.",0,0,0,0,null,"vrije keuze","vrije keuze",0,"dranken inbegrepen",0,0,0,"dranken inbegrepen",{"$nulls":10},"Keuze aperitiefhapjes:"]
[null,0,{"$nulls":6},{"v":0,"d":"€ 0.00"},null,null,"eventueel tweede wordt","eventueel derde wordt","met 4 aperitiefglaasjes","Dranken 2 uur inbegrepen.",0,0,0,0,null,"Porto rood","Porto rood",0,"gedurende 2 uur",0,0,0,"gedurende 2 uur",{"$nulls":10},"BORD"]
[null,0,{"$nulls":6},{"v":0,"d":"€ 0.00"},null,null,"direct afgerekend of","direct afgerekend of"," en drank gedurende 2 uur.","Met tapenades:",null,0,0,null,null,"Martini","Martini",0,"met huis schuimwijn,",0,0,0,"met huis schuimwijn,",{"$nulls":10},"Bord met rauwe groenten en cocktailsaus (wortel, bloemkool, radijs)"]
[null,0,{"$nulls":6},{"v":0,"d":"€ 0.00"},null,null,"komt op 1 rekening","komt op 1 rekening",0,"tonijn / pesto spread rosso /zoete peper roomkaas",null,0,{"$nulls":3},"Kir","Kir",0,"frisdranken en",0,0,0,"frisdranken en",{"$nulls":10},"Bord met olijven, kaasjes en salamietjes"]
[null,0,{"$nulls":6},{"v":0,"d":"€ 0.00"},{"$nulls":5},0,{"$nulls":5},"Frisdrank","Frisdrank",0,"bieren naar believen.",null,0,0,"bieren naar believen.",{"$nulls":10},"Bord met 3 tapenades (tonijn / pesto spread rosso /zoete peper roomkaas)"]
[{"$nulls":14},0,{"$nulls":5},"Bieren","Bieren",0,0,null,0,0,0,{"$nulls":10},"KOUD"]
[{"$nulls":14},0,{"$nulls":5},"nootjes en chips inbegr.","nootjes en chips inbegr.",0,"Assortiment van 4  ",null,0,0,"Ook inbegrepen:",{"$nulls":10},"crunchy sushi"]
[{"$nulls":12},"Roomijs ",{"$nulls":7},"TIP:","TIP:",0,"aperitiefglaasjes",null,0,0,"tapenades",{"$nulls":10},"luzerne met gerookte zalm, eitjes van vliegende vis in wasabi"]
[null,"Schuimwijn van het huis (reeds inbegrepen)",{"$nulls":6},{"v":0,"d":"€ 0.00"},{"$nulls":3},"Bruine chocolademousse",{"$nulls":7},"Receptie A","Receptie A",0,"inbegrepen.",null,0,0,"nootjes en chips",{"$nulls":10},"preischeuten met tijgergarnalen en mini tomaat"]
[null,"Cava",{"$nulls":6},{"v":3.5,"d":"€ 3.50"},{"$nulls":3},"Pasteis de nata",{"$nulls":7},"kost evenveel als","kost evenveel als",0,"Maak uw keuze",null,0,0,0,{"$nulls":10},"aperoglaasje parmaham met meloenbolletjes"]
[null,"Champagne",{"$nulls":6},{"v":7,"d":"€ 7.00"},{"$nulls":3},"Chocoladebavarois",{"$nulls":7},"2 aperitieven pp.","2 aperitieven pp.",0,"hier rechts! =>",null,0,0,0,{"$nulls":10},"ganache van foie gras met frambozenconfituur en amandelbrood"]
[{"$nulls":12},"Miserable",{"$nulls":7},"En dan is de drank naar","En dan is de drank naar",0,0,null,0,0,0,{"$nulls":10},"aperoglaasje parmaham met espuma van mango"]
[{"$nulls":12},"glaasje fruitsla met perensorbet",{"$nulls":7},"believen!","believen!",0,"Liever meer dan 4 hapjes? Geen probleem.",null,0,0,0,{"$nulls":10},"verse oester"]
[{"$nulls":12},"Witte chocolademousse ",{"$nulls":7},"En met tapenades!","En met tapenades!",0,"Het supplement bedraagt € 1,60 per hapje",null,0,0,0,{"$nulls":10},"Taboulé met gerookte forel"]
[{"$nulls":12},"Roomsoes met warme chocoladesaus ",{"$nulls":25},"Haringhapje met curry"]
[null,"Dessertbuffet zonder maaltijd: ",{"$nulls":6},{"v":18,"d":"€ 18.00"},{"$nulls":3},"Tiramisu",{"$nulls":25},"Mini bagel met zalm en kruidenkaas"]
[null,"Koffie 3 X bediend",{"$nulls":6},{"v":2.9,"d":"€ 2.90"},{"$nulls":3},"Javanais",{"$nulls":25},"SOEP"]
[{"$nulls":12},"Gebak peer-caramel ",{"$nulls":25},"Kreeftensoep"]
[{"$nulls":12},"mini fruittaartje",{"$nulls":25},"Aspergeroomsoep met koornbloemblaadjes"]
[null,"1 aperitief per persoon, vrije keuze",{"$nulls":6},{"v":6,"d":"€ 6.00"},{"$nulls":3},"frambozenbavarois",{"$nulls":25},"Pompoensoep (sept. okt. nov.)"]
[null,"Pineau des charentes wit",{"$nulls":6},{"v":6,"d":"€ 6.00"},{"$nulls":29},"Kervelroomsoep met gerookte eend"]
[null,"Maison (basis safari)",{"$nulls":6},{"v":6,"d":"€ 6.00"},{"$nulls":29},"Preiroomsoep met broccoligarnituur en gebakken spekjes"]
[null,"Kir royale",{"$nulls":6},{"v":6,"d":"€ 6.00"},{"$nulls":29},"Soepje van boschampignons met gerookte paling"]
[null,"Sherry dry",{"$nulls":6},{"v":6,"d":"€ 6.00"},{"$nulls":29},"WARM"]
[null,"Porto",{"$nulls":6},{"v":6,"d":"€ 6.00"},{"$nulls":29},"mini hot-dog"]
[null,"Martini (wit/rood)",{"$nulls":6},{"v":6,"d":"€ 6.00"},{"$nulls":29},"Breydelspek met mosterdroomsaus"]
[null,"Kir",{"$nulls":6},{"v":6,"d":"€ 6.00"},{"$nulls":29},"aperoglaasje scampi"]
[null,"Schuimwijn",{"$nulls":6},{"v":6,"d":"€ 6.00"},{"$nulls":29},"Warme dagvis met curry"]
[{"$nulls":38},"een gevuld toastcupje"]
[null,"Maak hier uw keuze voor extra hapjes bij het aperitief",{"$nulls":36},"oester met champagnesaus "]
[null,"Nootjes, chips en zoutkoekjes zoveel u wenst (gratis)",{"$nulls":6},"gratis",{"$nulls":29},"garnaal in filo"]
[null,"Rauwe groenten (wortel, bloemkool, cocktailsaus) prijs per persoon:",{"$nulls":6},{"v":1.6,"d":"€ 1.60"},{"$nulls":29},"mini croque"]
[null,"Warme toostjes per stuk",{"$nulls":6},{"v":1.6,"d":"€ 1.60"},{"$nulls":29},"mini loempia"]
[null,"Koude toostjes per stuk",{"$nulls":6},{"v":1.6,"d":"€ 1.60"},{"$nulls":29},"mini kippenboutje"]
[null,"aperitiefglaasjes per stuk",{"$nulls":6},{"v":1.6,"d":"€ 1.60"},{"$nulls":29},"Gepaneerde garnalen butterfly"]
[null,"Oesters per stuk warm of koud",{"$nulls":6},"fini",{"$nulls":29},"DESSERT"]
[null,"wachtbordje met vispasteitje",{"$nulls":6},{"v":4,"d":"€ 4.00"},{"$nulls":29},"mini dame blanche (1 bol in wijnglas)"]
[null,"wachtbordje van reuzentoost met gerookte zalm",{"$nulls":6},{"v":4,"d":"€ 4.00"},{"$nulls":29},"Bruine chocolademousse"]
[null,"wachtbordje van lauw slaatje met gerookte zalm en scampi's",{"$nulls":6},{"v":6,"d":"€ 6.00"},{"$nulls":29},"Pasteis de nata"]
[{"$nulls":38},"Chocoladebavarois"]
[{"$nulls":38},"Miserable"]
[]
[]
[null,"Keuze warme toostjes",null,null,"Keuze koude toostjes",null,null,"Keuze aperoglaasjes"]
[null,"(bij reservatie te bepalen)",null,null,"(bij reservatie te bepalen)",null,null,"(bij reservatie te bepalen)"]
[null,"kippenbilletjes",null,null,"toost garnaal koud",null,null,"aperoglaasje eendenmousse"]
[null,"toostcupje",null,null,"toost gerookte zalm koud",null,null,"aperoglaasje gerookte zalm"]
[null,"garnaal in filo",null,null,"toost krabsla koud",null,null,"aperoglaasje mousse van krab"]
[null,"mini croque",null,null,"toost eendenpastei koud",null,null,"aperoglaasje tomaat / garnaal"]
[null,"scampi enz….",{"$nulls":5},"en nog veel mogelijkheden"]
[]
[null,0]
[null,"supplement per stukje gebak:",{"$nulls":6},1,null,0]
[null,0,{"$nulls":8},0]
[null,"Nog geen dessert geselecteerd",{"$nulls":8},0]
[null,"IJstaart ambachtelijk, speciale vorm, smaak naar keuze",{"$nulls":6},6]
[null,"Stel hieronder uw mini dessertbordje samen met minstens 4 dessertjes",{"$nulls":6},4,null,"Keuze: Roomijs en/of Bruine chocolademousse en/of Pasteis de nata en/of ","Chocoladebavarois en/of Miserable en/of glaasje fruitsla met perensorbet en/of ","Witte chocolademousse en/of Roomsoes met warme chocoladesaus en/of Tiramisu en/of ","Javanais en/of Gebak peer-caramel en/of mini fruittaartje."]
[null,"Coupe met vers fruit en verse slagroom.",{"$nulls":6},4,null,"Vanilleijs, vers fruit en verse slagroom"]
[null,"Aardbeiensoepje met sinaasappel in seizoen",{"$nulls":6},4,null,"Sinaasappelsap met grand marnier en daarin vers gesneden aardbeien (alleen in seizoen)"]
[null,"Coupe met aardbeien en verse slagroom.",{"$nulls":6},4,null,"Vanilleijs, verse aardbeien en verse slagroom"]
[null,"Dame blanche",{"$nulls":6},6,null,"Vanilleijs, verse slagroom,warme chocoladesaus."]
[null,"- frambozentaart",{"$nulls":6},6,null,"De lekkerste van alle gebakjes."]
[null,"- progres",{"$nulls":6},6,null,"Een klassieker."]
[null,"- fruitgebakje",{"$nulls":6},6,null,"Klein maar fijn gebakje"]
[null,"- biscuit crème fraiche met coulis",{"$nulls":6},4,null,"Vrij groot stuk met slagroom. Foto op de taart: suppl. € 1 per stuk taart en € 12 per foto "]
[null,"- warme appeltaart met een bolletje ijs",{"$nulls":6},4,null,"Hier heb je zowel gebak als vanilleijs."]
[null,"- zwarte woudtaart",{"$nulls":6},6,null,"Biscuit met cacaopoeder in een tasje."]
[null,"Sabayon met rood fruit",{"$nulls":6},4,null,"Sabayon, fruit en ijs"]
[null,0,{"$nulls":6},0]
[null,"Basis dessertbuffet met:",{"$nulls":6},11,null,"vers fruit, verschillende soorten sorbet, chocolademousse, roomijs","variatie van miserable, javanais, pasteis de nata, roomsoes, speculoostaart,","De samenstelling van het buffet kan verschillen, naargelang de grootte van de groep",null,null,"Belangrijk: De prijs van dit dessertbuffet geldt alleen indien voorafgegaan door een maaltijd!!"]
[null,"Uitgebreid dessertbuffet met:",{"$nulls":6},14.5,null,"vers fruit, verschillende soorten sorbet, chocolademousse, roomijs","variatie van miserable, javanais, pasteis de nata, roomsoes, speculoostaart,","De samenstelling van het buffet kan verschillen, naargelang de grootte van de groep","assortiment van mini-bavarois (framboos-passie-zwarte woud-pistache-chocolade praliné)",null,"Belangrijk: De prijs van dit dessertbuffet geldt alleen indien voorafgegaan door een maaltijd!!"]
[null,"Uitgebreid en luxueus dessertbuffet met:",{"$nulls":6},18,null,"vers fruit, verschillende soorten sorbet, chocolademousse, roomijs","variatie van miserable, javanais, pasteis de nata, roomsoes, speculoostaart,","De samenstelling van het buffet kan verschillen, naargelang de grootte van de groep","assortiment van mini-bavarois (framboos-passie-zwarte woud-pistache-chocolade praliné)","dessertglaasjes (framboos-amandel - trio chocolade - mango-caramel - chocolade praliné)","Belangrijk: De prijs van dit dessertbuffet geldt alleen indien voorafgegaan door een maaltijd!!"]
[]
[]
[]
[]
[]
[]
[null,"Nog geen keuze gemaakt"]
[null,"Koffie 3 X bediend",{"$nulls":5},"€ ",2.9]
[null,"Koffie 3 X bediend met koekjes",{"$nulls":5},"€ ",3.9]
[null,"Koffie 3 X bediend met pralines",{"$nulls":5},"€ ",4.4]
[]
[]
[]
[]
["Koude voorgerechten"]
["Maak hier uw keuze indien u een koud voorgerecht wenst"]
["½ kreeft “en belle vue”",{"$nulls":7},"€ ",{"v":24,"d":"24.00"}]
["Foie gras op 2 wijzen (als pastei en zacht gebakken lever)",{"$nulls":7},"€ ",{"v":20,"d":"20.00"}]
["Verse ganzenleverpastei van het huis met Xeresgelei",{"$nulls":7},"€ ",{"v":20,"d":"20.00"}]
["Gek slaatje van de chef met grijze garnalen, gerookte zalm en foie gras",{"$nulls":7},"€ ",{"v":17,"d":"17.00"}]
["Salade van verse grijze gepelde garnalen",{"$nulls":7},"€ ",{"v":17,"d":"17.00"}]
["Lauw slaatje met scampi's, kwartelei en gerookte zalm",{"$nulls":7},"€ ",{"v":14,"d":"14.00"}]
["Gerookte zalm xxxxxxxxx",{"$nulls":7},"€ ",{"v":14,"d":"14.00"}]
["Meloen met parmaham",{"$nulls":7},"€ ",{"v":14,"d":"14.00"}]
["Gemarineerde zalm met asperges, dille en een rivierkreeftje",{"$nulls":7},"€ ",{"v":14,"d":"14.00"}]
["Zomers slaatje met gebakken kippereepjes + kalfszwezeriken",{"$nulls":7},"€ ",{"v":17,"d":"17.00"}]
["Frivool slaatje van gerookte zalm, St Jacobsvruchten en gepocheerde zalm ",{"$nulls":7},"€ ",{"v":17,"d":"17.00"}]
["Zomers slaatje met gebakken kippereepjes",{"$nulls":7},"€ ",{"v":14,"d":"14.00"}]
["Bordje met  pandalusgarnalen en cocktailsaus",{"$nulls":7},"€ ",{"v":14,"d":"14.00"}]
["Gegarneerde vispastei",{"$nulls":7},"€ ",{"v":14,"d":"14.00"}]
["Tomaat Mozarella",{"$nulls":7},"€ ",{"v":14,"d":"14.00"}]
["Gepocheerde zalm op frivool slaatje met cocktailsaus",{"$nulls":7},"€ ",{"v":14,"d":"14.00"}]
["Duo van gerookte zalm en gepocheerde zalm",{"$nulls":7},"€ ",{"v":14,"d":"14.00"}]
[]
[]
[]
["Huiswijn, bieren en frisdranken als forfait",{"$nulls":7},"€ ",{"v":2.6,"d":"2.60"},"Hier steeds de prijs van de huiswijn typen"]
["Domaine Joel Delauny Touraine  en/of Château Reynier, Bordeaux superieur,  bieren en frisdranken",{"$nulls":7},"€ ",{"v":5,"d":"5.00"}]
{"$rows_empty":10}
["XI Soepen",null,"Er is steeds 1 broodje inbegrepen"]
[null,null,"   * = geschikt voor vegetariërs"]
[]
["Maak hier uw keuze indien u soep wenst"]
["Schaaldierenroomsoep",{"$nulls":6},"€ ",{"v":11,"d":"11.00"}]
["Noordzeeketeltje",{"$nulls":6},"€ ",{"v":6.5,"d":"6.50"}]
["Romig groentesoepje , geparfumeerd met gerookte kipperfilets",{"$nulls":6},"€ ",{"v":6.5,"d":"6.50"}]
["Ossenstaartsoep met verse stukjes ossenstaart",{"$nulls":6},"€ ",{"v":6.5,"d":"6.50"}]
["Komkommerroomsoep *",{"$nulls":6},"€ ",{"v":4.5,"d":"4.50"}]
["Aspergeroomsoep met koornbloemblaadjes *",{"$nulls":6},"€ ",{"v":4.5,"d":"4.50"}]
["Aalsterse soep met toostje onder kaas (= ajuinsoep) *",{"$nulls":6},"€ ",{"v":4.5,"d":"4.50"}]
["Pompoensoep (sept. okt. nov.) *",{"$nulls":6},"€ ",{"v":4.5,"d":"4.50"}]
["Kervelroomsoep met gerookte eend",{"$nulls":6},"€ ",{"v":4.5,"d":"4.50"}]
["Preiroomsoep met broccoligarnituur en gebakken spekjes",{"$nulls":6},"€ ",{"v":4.5,"d":"4.50"}]
["Selderroomsoep *",{"$nulls":6},"€ ",{"v":4.5,"d":"4.50"}]
["Tomatenroomsoep *",{"$nulls":6},"€ ",{"v":4.5,"d":"4.50"}]
["Soepje van boschampignons en gerookte paling",{"$nulls":6},"€ ",{"v":4.5,"d":"4.50"}]
["Preisoep met gevogeltereepjes",{"$nulls":6},"€ ",{"v":4.5,"d":"4.50"}]
["Wortelsoep *",{"$nulls":6},"€ ",{"v":4.5,"d":"4.50"}]
["Agnes Sorel-roomsoep met shiitakes",{"$nulls":6},"€ ",{"v":4.5,"d":"4.50"}]
{"$rows_empty":18}
["Alleen de beste vis wordt geselecteerd voor onze gerechten !!!"]
[]
["XII Warme voorgerechten"]
[]
["Alle hiernavolgende visgerechten zijn 99,99% zonder graten !"]
["Maak hier uw keuze indien u een warm voorgerecht wenst",{"$nulls":13},"Scampi's \"maison\" (in kreeftesaus met kerrie)"]
["Scampi's \"maison\" (in kreeftesaus met kerrie)",{"$nulls":7},"€ ",{"v":16,"d":"16.00"},{"$nulls":4},"Gevarieerd slaatje met gebakken kalfszwezeriken"]
["Gevarieerd slaatje met gebakken kalfszwezeriken",{"$nulls":7},"€ ",{"v":20,"d":"20.00"},{"$nulls":4},"Met zalm gevulde tongfilets in gekruide roomsaus"]
["Met zalm gevulde tongfilets in gekruide roomsaus",{"$nulls":7},"€ ",{"v":17,"d":"17.00"},{"$nulls":4},0]
["Rolletje van zalm en tong, noordzeegarnalen en een langoustine",{"$nulls":7},"€ ",{"v":20,"d":"20.00"},{"$nulls":4},"Rolletje van zalm en tong, noordzeegarnalen en een langoustine"]
["Schelp met zalm-victoria-garnalen en fijne groenten",{"$nulls":7},"€ ",{"v":16,"d":"16.00"},{"$nulls":4},"Schelp met zalm-victoria-garnalen en fijne groenten"]
["Groenlandse heilbotfilet in kreeftenroomsaus en een rivierkreeftje",{"$nulls":7},"€ ",{"v":14,"d":"14.00"},{"$nulls":4},"Groenlandse heilbotfilet in kreeftenroomsaus en een rivierkreeftje"]
["Duo van Groenlandse heilbot en scampi's met een snuifje saffraan",{"$nulls":7},"€ ",{"v":14,"d":"14.00"}]
["Duo van Groenlandse heilbot en St. Jacobsvruchten",{"$nulls":8},{"v":17,"d":"17.00"}]
["Bladerdeeggebakje gevuld met kip en kalfszwezeriken",{"$nulls":7},"€ ",{"v":17,"d":"17.00"}]
["Bladerdeeggebakje gevuld met kip",{"$nulls":7},"€ ",{"v":14,"d":"14.00"}]
["Victoriabaarsfilet in preiroomsaus",{"$nulls":7},"€ ",{"v":14,"d":"14.00"}]
["Witte zalmfilet in gekruide roomsaus of in kreeftenroomsaus",{"$nulls":7},"€ ",{"v":14,"d":"14.00"}]
["Schelpje met noordzeevis en fijne groenten",{"$nulls":7},"€ ",{"v":14,"d":"14.00"}]
["Gepocheerde verse roze zalm met bieslooksaus",{"$nulls":7},"€ ",{"v":14,"d":"14.00"}]
["Halve aardappel met noordzeevis en lauwe grijze garnalen ",{"$nulls":7},"€ ",{"v":14,"d":"14.00"}]
[]
[]
[]
[]
["Selecteer hier uw drank bij het warm voorgerecht (zoniet wordt standaard de huiswijn gekozen)",{"$nulls":8},{"v":2.6,"d":"2.60"},"Hier steeds de prijs van de huiswijn typen"]
["Huiswijn, bieren en frisdranken als forfait",{"$nulls":7},"€ ",{"v":2.6,"d":"2.60"}]
["De Kaapse leeuw  Chenin blanc (wit), Chat. Reynier bordeaux superieur (rood)  en andere drank als forfait, pp:",{"$nulls":7},"€ ",{"v":5,"d":"5.00"}]
[]
[]
[]
["Maak hier uw keuze indien u een bolletje sorbet als tussengerecht wenst. Kan ook voor het warm voorgerecht gegeven worden."]
["Bolletje sorbet limoen",{"$nulls":8},{"v":4.5,"d":"4.50"}]
["Bolletje sorbet framboos",{"$nulls":8},{"v":4.5,"d":"4.50"}]
[]
[]
[]
[]
[]
["Supplement hoofdschotel zonder soep:",{"$nulls":8},{"v":3.5,"d":"3.50"}]
[null,"niet voor:",null,"Jumbo mosselen naar believen"]
[{"$nulls":3},"Gepocheerde zeetong met seizoengarnituur 3/kg",{"$nulls":7},"Deze hoofdschotels staan er niet tussen bij Ucalc omdat het onmogelijk is om de toeslag"]
[{"$nulls":3},"Drieluik van vis roze zalm, groenlandse heilbot en tongfilet ",{"$nulls":7},"niet aan te rekenen in die tool."]
[{"$nulls":3},"Ribbetjes 1 portie"]
[{"$nulls":3},"Kip aan het spit 1 portie"]
[{"$nulls":3},"Varkens côte à l'os"]
[]
[]
["In dit kader vindt u de visgerechten als hoofdschotel  *** betekent 3 x bediend, anders 1 portie",{"$nulls":22},"Nog geen saus geselecteerd"]
["Jumbo mosselen naar believen",{"$nulls":6},"dagprijs +","€ ",{"v":41,"d":"41.00"},null,null,"geen saus nodig",{"$nulls":10},"kreeftsaus met groentebrunoise",null,null,"Een zacht sausje op basis van kreeft met fijne groenteblokjes"]
["Gepocheerde zeetong met seizoengarnituur 3/kg",{"$nulls":7},"€ ",{"v":41,"d":"41.00"},null,null,"kreeftsaus met groentebrunoise","garnalenroomsaus","kreeftsaus zonder groenten","saffraansaus","preiroomsaus","mosterdsausje met gefruite prei","bieslooksaus",{"$nulls":4},"gekruide roomsaus",null,null,"Zachte roomsaus met peterselie en bieslook. Niet pikant"]
["Drieluik van vis roze zalm, groenlandse heilbot en tongfilet ",{"$nulls":7},"€ ",{"v":39,"d":"39.00"},null,null,"kreeftsaus met groentebrunoise","gekruide roomsaus","garnalenroomsaus","kreeftsaus zonder groenten","saffraansaus","preiroomsaus",{"$nulls":5},"garnalenroomsaus",null,null,"Sausje op basis van bisque met grijze garnalen"]
["Groenlandse heilbotfilet in kreeftenroomsaus met groenten***",{"$nulls":7},"€ ",{"v":35.9,"d":"35.90"},null,null,"kreeftsaus met groentebrunoise","gekruide roomsaus","garnalenroomsaus","kreeftsaus zonder groenten","saffraansaus","preiroomsaus","bieslooksaus",{"$nulls":4},"kreeftsaus zonder groenten",null,null,"Een zacht sausje op basis van kreeft"]
["Witte zalmfilet in gekruide roomsaus***",{"$nulls":7},"€ ",{"v":35.9,"d":"35.90"},null,null,"kreeftsaus met groentebrunoise","gekruide roomsaus","mosterdsausje met gefruite prei","bieslooksaus",{"$nulls":7},"saffraansaus",null,null,"Lichtgele saus op basis van visbouillon geparfumeerd met saffraan"]
["Victoriabaarsfilet in preiroomsaus***",{"$nulls":7},"€ ",{"v":35.9,"d":"35.90"},null,null,"gekruide roomsaus","saffraansaus","preiroomsaus","bieslooksaus",{"$nulls":7},"preiroomsaus",null,null,"Witte saus op basis van visbouillon met stukjes prei"]
["Gepocheerde zalm ***",{"$nulls":7},"€ ",{"v":35.9,"d":"35.90"},null,null,"kreeftsaus met groentebrunoise","gekruide roomsaus","saffraansaus","bieslooksaus",{"$nulls":7},"mosterdsausje met gefruite prei",null,null,"Sausje op basis van visvouillon met een lichte smaaktoets van mosterd. Vergezeld van gefrituurde prei-julienne"]
["In dit kader vindt u de vleesgerechten als hoofdschotel ",{"$nulls":11},0,0,0,0,0,0,0,0,0,0,null,"bieslooksaus",null,null,"Zachte roomsaus met  bieslook. Niet pikant"]
["Filet pur (Holstein)",{"$nulls":7},"€ ",{"v":41,"d":"41.00"},null,null,"bearnaise","romige portosaus","pepersaus","grootmoeders wijze","mosterd en look","bordelaise","jagerssaus","champignonroomsaus",{"$nulls":3},"bearnaise",null,null,"Klassieke saus met lichtzure smaak van dragonazijn, afgewerkt met verse kervel"]
["Buffet met côte à l’os, 3 sausen en roerbakgroenten",{"$nulls":7},"€ ",{"v":37.5,"d":"37.50"},null,null,"bearnaise","romige portosaus","pepersaus","grootmoeders wijze","mosterd en look","bordelaise","jagerssaus","champignonroomsaus",{"$nulls":3},"romige portosaus",null,null,"Onze klassieker. Lichtbruine roomsaus, past bij ongeveer elk vleesgerecht"]
["Lamsfilet",{"$nulls":7},"€ ",{"v":41,"d":"41.00"},null,null,"romige portosaus","pepersaus","mosterd en look",{"$nulls":8},"pepersaus",null,null,"Lichtbruine saus met subtiele pepertoets, niet te pikant"]
["Kalfsgebraad",{"$nulls":7},"€ ",{"v":41,"d":"41.00"},null,null,"romige portosaus","pepersaus","grootmoeders wijze","bordelaise","jagerssaus","champignonroomsaus",{"$nulls":5},"grootmoeders wijze",null,null,"Lichtbruine saus met ui, spek en champignons. Het spek heeft een overheersende smaaktoets"]
["Rosbief (Belgisch wit-blauw)",{"$nulls":7},"€ ",{"v":37.5,"d":"37.50"},null,null,"bearnaise","romige portosaus","pepersaus","grootmoeders wijze","mosterd en look","bordelaise","jagerssaus","champignonroomsaus",{"$nulls":3},"blackwell",null,null,"Lichtbruine saus met smaaktoets van pickles"]
["Variatie van vlees  roastbeef,  varkensfilet en lamsnootjes",{"$nulls":7},"€ ",{"v":37.5,"d":"37.50"},null,null,"romige portosaus","pepersaus","mosterd en look","bordelaise","jagerssaus","champignonroomsaus",{"$nulls":5},"mosterd en look",null,null,"Lichtbruine saus met smaaktoets van mosterd en look"]
["Varkenshaasjes",{"$nulls":7},"€ ",{"v":37.5,"d":"37.50"},null,null,"romige portosaus","pepersaus","grootmoeders wijze","blackwell","mosterd en look","bordelaise","jagerssaus","champignonroomsaus",{"$nulls":3},"fijne groentesaus",null,null,"Witte saus met met fijne groenteblokjes"]
["Varkens côte à l'os",{"$nulls":7},"€ ",{"v":35.9,"d":"35.90"},null,null,"romige portosaus","pepersaus","grootmoeders wijze","mosterd en look","jagerssaus","champignonroomsaus",{"$nulls":5},"bordelaise",null,null,"Rode wijnsaus met uiblokjes"]
["Varkensgebraad ",{"$nulls":7},"€ ",{"v":35.9,"d":"35.90"},null,null,"romige portosaus","pepersaus","grootmoeders wijze","blackwell","mosterd en look","bordelaise","fijne kruidensaus","jagerssaus","champignonroomsaus",null,null,"fijne kruidensaus",null,null,"Witte saus met peterselie en bieslook, niet pikant"]
["Duivelsgebraad",{"$nulls":7},"€ ",{"v":35.9,"d":"35.90"},null,null,"witte mosterdsaus","jagerssaus","champignonroomsaus",{"$nulls":8},"witte mosterdsaus",null,null,"Witte saus met smaaktoets van mosterd"]
["Ardeens gebraad",{"$nulls":7},"€ ",{"v":35.9,"d":"35.90"},null,null,"romige portosaus","pepersaus","jagerssaus","champignonroomsaus",{"$nulls":7},"jagerssaus",null,null,"Lichtbruine saus met uiblokjes"]
["Kasselrib ",{"$nulls":7},"€ ",{"v":35.9,"d":"35.90"},null,null,"romige portosaus","pepersaus","jagerssaus","champignonroomsaus",{"$nulls":7},"champignonroomsaus",null,null,"Klassieke saus met champignons"]
["Ribbetjes 1 portie",{"$nulls":7},"€ ",{"v":35.9,"d":"35.90"},null,null,"koude sausjes inbegrepen",{"$nulls":10},"koude sausjes inbegrepen"]
[{"$nulls":23},"geen saus voorzien"]
[{"$nulls":23},"geen saus nodig"]
[{"$nulls":23},"sinaasappelsaus",null,null,"Zoet sausje op basis van sinaasappelsap"]
["Er wordt rondgekomen tot iedereen voldoende heeft, tenzij anders vermeld.",{"$nulls":22},0,null,null,0]
["Er is ook steeds een passende garnituur inbegrepen"]
["De aardappelbereiding en de groenten zijn altijd naar believen."]
["In dit kader vindt u gevogelte als hoofdschotel "]
["Eendenborstfilet",{"$nulls":7},"€ ",{"v":35.9,"d":"35.90"},null,null,"romige portosaus","pepersaus","sinaasappelsaus"]
["Kalkoen verrijkt met verse kreeft",{"$nulls":7},"€ ",{"v":45,"d":"45.00"},null,null,"kreeftsaus zonder groenten"]
["Parelhoen",{"$nulls":7},"€ ",{"v":35.9,"d":"35.90"},null,null,"romige portosaus","pepersaus","blackwell","mosterd en look","bordelaise","fijne kruidensaus","witte mosterdsaus","jagerssaus","champignonroomsaus","sinaasappelsaus"]
["Kippenfilet met grijze garnalen ",{"$nulls":7},"€ ",{"v":35.9,"d":"35.90"},null,null,"kreeftsaus zonder groenten"]
["Kalkoenfilet",{"$nulls":8},{"v":35.9,"d":"35.90"},null,null,"kreeftsaus met groentebrunoise","romige portosaus","pepersaus","mosterd en look","fijne groentesaus","fijne kruidensaus","champignonroomsaus","sinaasappelsaus"]
["Kippenfilet",{"$nulls":7},"€ ",{"v":35.9,"d":"35.90"},null,null,"kreeftsaus met groentebrunoise","romige portosaus","pepersaus","fijne groentesaus","fijne kruidensaus","witte mosterdsaus","champignonroomsaus"]
["Kip aan het spit 1 portie",{"$nulls":7},"€ ",{"v":27,"d":"27.00"},null,null,"geen saus voorzien"]
[]
["Selecteer hier uw drank bij het hoofdgerecht (zoniet wordt standaard de huiswijn gekozen)",{"$nulls":8},{"v":3.8,"d":"3.80"},"Hier steeds de prijs van de huiswijn typen"]
["Huiswijn, bieren en frisdranken als forfait",{"$nulls":7},"€ ",{"v":3.8,"d":"3.80"},null,null,"Nog geen aardappelbereiding geselecteerd"]
["Domaine Joel Delauny Touraine  en/of Château Reynier, Bordeaux superieur,  bieren en frisdranken",{"$nulls":7},"€ ",{"v":8,"d":"8.00"},null,null,"kroketjes",null,null,"Meest populair, past uitstekend bij gevogelte en vlees"]
[{"$nulls":12},"friet",null,null,"Past bij nagenoeg alles, zelf vis"]
[{"$nulls":12},"roomaardappel",null,null,"schijfjes aardappel bereid in room met fijne kruiden. Uitstekend bij vleesgerechten"]
["Indien uw feest cash betaald wordt en op de dag zelf dan krijgt u een korting van 2 % !",{"$nulls":11},"aardappel in de pel",null,null,"Gekookte aardappel in de pel met lookboter opgediend"]
[{"$nulls":12},"ovenaardappel",null,null,"Gekookte aadappel in de pel, in twee gesneden en opgespoten met puree"]
[{"$nulls":12},"trio van puree",null,null,"Dit vervangt ook de groenten. Aardappelpuree, broccolipuree en wortelpuree in een rösti bootje."]
[{"$nulls":12},"rijst",null,null,"Lekker bij visgerechten."]
[{"$nulls":12},"koude aardappelbrunoise",null,null,"Koude aardappelblokjes met pittige vinaigrette"]
[{"$nulls":12},"krielaardappeltjes",null,null,"Kleine aardappeltjes in de oven bereid met spekreepjes"]
[{"$nulls":12},"puree",null,null,"Klassieke aardappelpuree in de oven verwarmd als duchesse"]
["Exclusiviteit voor beide zalen:",{"$nulls":4},{"v":750,"d":"750.00"},{"$nulls":6},"tijmaardappelen",null,null,"Kleine aardappelblokjes gefrituurd en geparfumeerd met tijm"]
[{"$nulls":12},"rozemarijnaardappelen",null,null,"gebakken aardappelen geparfumeerd met rozemarijn"]
[]
[]
[{"$nulls":12},"Kies hier 4 verschillende warme groenten"]
[{"$nulls":12},"champignons op z'n geheel"]
[{"$nulls":12},"witloof"]
[{"$nulls":12},"erwten"]
[{"$nulls":12},"wortelen"]
[{"$nulls":12},"boontjes (met ui)"]
[{"$nulls":12},"boontjes (met speklardons)"]
[{"$nulls":12},"boontjes (in spekreepjes supplement)",{"$nulls":3},{"v":0.7,"d":"0.70"}]
[{"$nulls":12},"bloemkool"]
[{"$nulls":12},"Broccoli "]
[{"$nulls":12},"peer in witte wijn (supplement!)",{"$nulls":3},{"v":1.4,"d":"1.40"}]
[{"$nulls":12},"asperges"]
[{"$nulls":3},"Maak hier uw keuze"]
[null,"Belegd met:",null,"parmaham",null,null,"€ ",4.5,{"$nulls":4},"Kies één van de volgende assortimenten"]
[{"$nulls":3},"grijze garnalen",null,null,"€ ",4.2,{"$nulls":4},"roerbakgroenten",{"$nulls":4},"Dit is een lekkere mengeling van bloemkool, boontjes, broccoli, wortelen. Geen afwijking mogelijk."]
[{"$nulls":3},"gerookte zalm",null,null,"€ ",2.5,{"$nulls":4},"gewokte groenten",{"$nulls":4},"Dit zijn mange-touts,  babymais,  mini shi takes,  paprika, oesterzwammen, broccoli, wortelen,  sojascheuten. Hier is geen afwijking mogelijk."]
[{"$nulls":3},"zalmsalade",null,null,"€ ",2.5,{"$nulls":4},"koude groenten \"klassiek\"",{"$nulls":4},"Sla, tomaat, komkommer, mais, rode biet, geraspte wortel, eventueel radijsjes"]
[{"$nulls":3},"gerookte ham",null,null,"€ ",2.5,{"$nulls":4},"koude groenten \"modern\"",{"$nulls":4},"Sla, gedroogde tomaat in olie, kwarteleieren (1/2)pp, geraspte wortel, mais, rode biet, vinaigrette."]
[{"$nulls":3},"vissla",null,null,"€ ",2.5,{"$nulls":4},"sla en tomaat (alleen bij kip aan 't spit)"]
[null," ",null,"kaas",null,null,"€ ",2.5]
[{"$nulls":3},"gekookte ham",null,null,"€ ",2.5]
[{"$nulls":3},"américain préparé",null,null,"€ ",2.5]
[{"$nulls":3},"krabsla",null,null,"€ ",2.5]
[{"$nulls":3},"kipsla",null,null,"€ ",2.5]
[]
[]
["Late night snacks",null,null,"overal op regel 300"]
["Croque uit het vuistje",{"$nulls":3},2.8]
["Pizza Margherita",{"$nulls":3},{"v":4.5,"d":"4.50"}]
["Belegde broodjes (2 pp)",{"$nulls":3},{"v":4.5,"d":"4.50"}]
["Braadworst",{"$nulls":3},{"v":3,"d":"3.00"}]
["Scampi (3pp) Nantua met farfale en broccoli",{"$nulls":3},{"v":4.5,"d":"4.50"}]
[]
[]
[]
["Worteltjes, erwtjes, boontjes*, bloemkool, broccoli, champignons, asperges, witloof…"]
[]
[]
["*","boontjes in spek gewikkeld suppl. ",{"$nulls":3},{"v":0.7,"d":"0.70"},"€ pp"]
["*","boontjes aangestoofd met spek en/ of ui, geen toeslag"]
["*","peer in witte wijn suppl",{"$nulls":3},{"v":1.4,"d":"1.40"},"€ pp"]
[]
["Indien u geen voorkeur heeft, dan maken wij graag een keuze voor u."]
["Assortiment koude groenten \"klassiek\":"]
[]
["Sla, tomaat, komkommer, mais, rode biet, geraspte wortel, eventueel radijsjes"]
[]
["Assortiment koude groenten \"modern\":"]
[]
["sla"," kwarteleieren (1/2)pp",null,null," mais (1/10 p)",{"$nulls":3},"vinaigrette"]
[" gedroogde tomaat in olie",{"$nulls":3}," geraspte wortel",null,"rode biet"]
[]
["Nieuw: Suggestie: trio van puree (vervangt aardappelbereiding en groenten)"]
["De drie soorten puree zijn : aardappelpuree, broccolipuree en wortelpuree."]
[]
[]
["roerbakgroenten:",null,"Bloemkool, boontjes, broccoli, wortelen."]
[null,null,"geen afwijking mogelijk."]
{"$rows_empty":11}
["sla en tomaat."]
[]
[]
["Alle drank na de maaltijd komt op één rekening en wordt door de organisator van het feest betaald",{"$nulls":14},"één rekening"]
["Elke gast die na de maaltijd een drankje bestelt rekent direct af aan de bar",{"$nulls":14},"direct afrekenen"]
["Forfait voor drank naar believen (alle bieren en frisdranken van de drankkaart in de zaal) na een maaltijd. pp: ",{"$nulls":13},{"v":18.2,"d":"18.20"},{"v":18.2,"d":"18.20"},"alletwee de prijzen nodig!"]
["Indien  er geen volwaardige maaltijd wordt genomen, dienen er minstens 4 belegde broodjes genomen te worden en verhoogt het drankforfait tot € 28,00 ",{"$nulls":14},{"v":33.8,"d":"33.80"}]
["'s middags tot 21 u - 's avonds onbeperkt. Let op! Artikel 8 van de verkoopsvoorwaarden (zie laatste bladzijde) kan hier van toepassing zijn !!!!"]
[]
["Neem contact op met de zaakvoerder op tel nr 0475/618058",{"$nulls":14},"x"]
["om hier zeker geen misverstanden over te hebben!"]
[]
[]
["Verbruik van DJ  ten laste van de klant"]
[]
["Voor onze vegetarische klanten:"]
[]
["- Voor onze vegetarische klanten bereiden wij graag een aparte schotel. "]
["Wij vragen wel met aandrang om op voorhand te melden als er vegetariërs zijn."]
["Zij eten mee aan de prijs van de rest van de groep."]
[]
[]
[]
[]
["Mensen met een speciaal dieet:"]
[]
["Wij houden rekening met speciale wensen van mensen die een dieet volgen, "]
["maar alleen indien op voorhand gemeld. "]
[]
["Halal kan ook, onder toezicht van een moslim bereid."]
[]
["ja"]
["nee"]
[]
[]
[]
[]
["Betaling op de dag zelf (cash of bancontact), u bekomt 2% korting op het totaal"]
["Storting op BE 48 4631 1391 2127 min. 7 dagen voor het feest, 2% korting"]
["Betaling na het feest. Gelieve 40 % voorschot te storten op BE48 4631 1391 2127. Geen korting."]
{"$rows_empty":117}
["Geen voorkeur"]
["Cd’s van het Katelijnenhof"]
["Eigen Cd's"]
["Joe 60&70",1]
["Joe 80&90",2]
["Joe easy",3]
["Joe lage landen",4]
["MNM",5]
["MNM hits",6]
["Nostalgie",7]
["Q-foute radio",8]
["Q-Max hits",9]
["Q Music",10]
["Radio 2 Bene Bene",11]
["Radio 2 West-Vlaanderen",12]
["Radio 1",13]
["Studio Brussel",14]
["Studio Brussel de tijdloze",15]
["Top Radio",16]
["Top Versuz Radio",17]
["NRJ",18]
["Klara",19]
["Radio Bingo",20]
["Joe",40]

{"sheet":"Algemene verkoopsvoorwaarden","index":2,"n_rows":39,"n_cols":1,"rows_kept":39}
["Algemene verkoopsvoorwaarden vanaf 01/11/2022:"]
[]
["1) Onze facturen zijn contant te betalen bij levering van de goederen, dit is de dag van het event. Bijgevolg zal in geval van laattijdige betaling van rechtswege en zonder voorafgaande ingebrekestelling een intrest aangerekend worden van 12% per jaar op de bedragen, verschuldigd acht dagen na de vervaldag van de facturen. Tevens zal bij gebrek aan betaling na aanmaning bij gewone brief, het verschuldigde bedrag van rechtswege verhoogd worden met een forfaitaire vergoeding van 12 % met een minimum van € 50  voor bijkomende administratieve kosten, debiteurenbewaking en commerciële stoornissen. Wij behouden ons het recht voor op elk moment de leveringen te staken. Elke klacht over de kwaliteit van de geleverde goederen moet uiterlijk 24 uur na de levering worden overgemaakt. "]
["Klachten in verband met facturatie kunnen slechts in aanmerking worden genomen zo zij binnen de acht dagen na ontvangst van de goederen bij aangetekende brief worden meegedeeld. In geval van betwisting zijn uitsluitend de rechtbanken van Kortrijk bevoegd. De leveringen  geschieden op risico van de bestemmeling. Er wordt uitdrukkelijk overeengekomen dat de klant door het plaatsen van een bestelling onze algemene verkoopsvoorwaarden erkent. Elke wijziging hieraan moet voorafgaandelijk in een schriftelijk akkoord worden vastgelegd."]
[]
["2) Annulatie dient schriftelijk en gedateerd te geschieden. "]
["In geval van annulatie minder dan 60 dagen voor de activiteit blijft het voorschot eigendom van het Katelijnenhof. Voor annulatie minder dan 10 dagen voor de activiteit is de klant in alle gevallen verplicht 35 % van de reservatie waarde van de gehele manifestatie te vergoeden. Bij annulatie minder dan 5 dagen voor  de activiteit is de klant in alle gevallen verplicht de reservatie waarde van de gehele manifestatie te vergoeden."]
[]
["3) Iedere levering van dranken, voedingswaren of diensten in de  zalen is uitsluitend voorbehouden aan het Katelijnenhof, tenzij er een andere schriftelijke overeenkomst is."]
[]
["4) De klant is eraan gehouden voor iedere dansavond met groot orkest een aanvraag tot toelating in te dienen bij SABAM, Rijselsestraat 51, 8500 Kortrijk, Tel : 056/210738 en alle kosten voortvloeiend uit deze aanvraag te dragen.  Voor een gewone disc-jockey betalen wij jaarlijks een vaste bijdrage. Het verbruik (drank en voeding) van de DJ is ten laste van de klant. Gelet op de nieuwe geluidsnormen, van kracht op 01/01/2013, moet de klant de DJ of elke andere persoon of toestel dat  geluid produceert verplichten zich aan deze normen te houden. De toelating voor onze zaal is – maximaal geluidsniveau > 85 dB(A) LAeq,15min en ≤ 95 dB(A) LAeq,15min. Dit is ruim voldoende. Alle boetes ten gevolge een overschrijding van deze voorwaarde zijn ten laste van de klant. Er wordt een professionele houding van elke DJ of geluidstechnicus verwacht."]
["Het is niet toegestaan om muziek af te spelen via B2C diensten zoals Spotify, Deezer, Youtube… Dit geldt voor elke horecazaak, winkel enz… Doet de klant of zijn DJ dat toch en er volgt een boete, dan is deze ten laste van de klant."]
[]
["5) Alle door de klant meegebrachte materiaal dient door de klant te worden verzekerd en direct na het beëindigen van de manifestatie te worden verwijderd uit de zaal. Het Katelijnenhof behoudt het recht de leverancier te aanvaarden en voorschriften te geven om de lokalen ongeschonden te behouden. Het is strikt verboden om versieringen aan de muren of plafonds te bevestigen met duimspijkers of kleefband ! Bij beschadigingen van een deel van de muur wordt het geheel als beschadigd beschouwd."]
[]
["6) Het gebruik van de zaal is strikt beperkt tot de in deze overeenkomst vastgestelde functie. Iedere wijziging in de voorheen verklaarde bestemming brengt automatisch het recht tot prijsherziening met zich mee."]
[]
["7) Het gebruik van de zaal is gratis van zodra het verbruik hoger ligt dan € 1250. Indien het verbruik lager ligt, wordt het factuurbedrag opgetrokken tot € 1250. Indien uw feest cash (max € 3000) of met Payconiq betaald wordt op de dag zelf krijgt u een korting van 2 % op de gehele factuur. Voor traiteurdienst gelden andere kortingsregels. Vanaf 01/04/23 wordt bancontact niet meer aanvaard!! "]
["Wie geen Payconiq heeft moet op voorhand storten om de korting te bekomen."]
[]
["8) Sluitingsuren zaal:"]
[]
["In geval van een event dat start ’s morgens start tussen 7u en 10u59 (vb. ontbijt)"]
["Event kan maximaal 6 uur duren."]
[]
["In geval van een event dat start op de middag start tussen 11u en 13u59"]
["De bar sluit om 18u00, de zaal sluit om 18u30."]
[]
["In geval van een event dat start in de namiddag start tussen 14u en 17u59 (vb. babyborrel)"]
["Event kan maximaal 6 uur duren."]
[]
["In geval van een event dat start ’s avonds start vanaf 18u"]
["De bar sluit om 2u30, de zaal sluit om 3u."]
[]
["Indien het event toch langer uitloopt dan het sluitingsuur wordt per begonnen uur een toeslag van € 125,00 (btw incl.) aangerekend. Geen enkel drankenforfait geldt dan nog."]
[]
["9) De klant is verantwoordelijk voor de goede orde in en rond de feestzaal. Schade veroorzaakt door een der aanwezigen kan verhaald worden op deze persoon maar als deze om gelijk welke reden de schade niet kan vergoeden (vb: te weinig financiële middelen of de veroorzaker is onbekend) kan deze schade eveneens ondeelbaar worden verhaald op de klant , zijnde de persoon die het feest heeft besteld. "]
[]
["10) Energietoeslag. De energieprijzen zijn momenteel op hol geslagen. Het kan zijn dat wij genoodzaakt zijn een energietoeslag voor het gebruik van de zaal aan te rekenen. U wordt in voorkomend geval op voorhand verwittigd en mag uw feest kosteloos annuleren indien u deze niet wenst te betalen."]

{"sheet":"Reservatievoorstel","index":3,"n_rows":50,"n_cols":20,"rows_kept":50,"merged":[[2,14,3,14],[2,15,3,15],[2,16,3,16],[2,17,3,17],[9,12,9,13],[12,9,12,11],[12,12,12,16],[14,9,14,17],[15,5,15,8],[16,9,16,17],[18,2,18,8],[19,3,20,8],[23,14,23,17],[25,0,25,8],[25,9,26,17],[28,0,28,8],[34,0,34,8],[34,13,34,17],[35,13,35,17],[39,0,40,8],[41,0,43,8],[48,9,48,15]]}
[null,null,{"$f":"\"Reservatievoorstel. \" & matrixen!B1","v":"Reservatievoorstel. Prijzen geldig tot 31/08/2023"},{"$nulls":7},"Uitsplitsing per BTW tarief.",{"$nulls":4},"Totaalprijs per vol:",{"$f":"E9","v":{"v":0,"d":"0.00"}}]
["Naam Klant:",null,{"$f":"'menu''s'!F110","v":0},{"$nulls":3},"Katelijnenhof",{"$nulls":8},{"$f":"IF(Q2>0,\"Prijs drankforfait na de maaltijd, 50/50 aan 21%/6% BTW:\",\"\")","v":""},{"$f":"'menu''s'!D95","v":{"v":0,"d":"0.00"}}]
["Adres:",null,{"$f":"'menu''s'!F111","v":0},{"$nulls":3},"Heirweg 172",{"$nulls":5},"Menu",null,"Dep. B",{"$f":"IF(Q2>0,\"Drank- forfait:\",\"\")","v":""},"Totaal aan 21%","Dep. A"]
["Stad:",null,{"$f":"'menu''s'!F112","v":0},{"$nulls":3},"8800 Roeselare",{"$nulls":3},"aantal","totaal:","deel 12%","deel21%"]
["Tel nr:",null,{"$f":"'menu''s'!F113","v":0},{"$nulls":3},"info@katelijnenhof.be",null,null,"Vol",{"$f":"D9","v":0},{"$f":"Q1","v":{"v":0,"d":"0.00"}},{"$f":"ROUND((L5-$Q$2)*0.65,2)","v":{"v":0,"d":"0.00"}},{"$f":"L5-M5","v":{"v":0,"d":"0.00"}},{"$f":"K5*M5","v":{"v":0,"d":"0.00"}},{"$f":"Q2","v":{"v":0,"d":"0.00"}},{"$f":"N5","v":{"v":0,"d":"0.00"}},{"$f":"K5*Q5","v":{"v":0,"d":"0.00"}}]
[{"$f":"'menu''s'!E124","v":"Reden feest:"},{"$f":"'menu''s'!F124","v":0},{"$nulls":4},"Gsm 0475/618058",null,null,"JR 1/2",{"$f":"D10","v":0},{"$f":"E10","v":{"v":0,"d":"0.00"}},{"$f":"ROUND((L6-$Q$2/2)*0.65,2)","v":{"v":0,"d":"0.00"}},{"$f":"L6-M6","v":{"v":0,"d":"0.00"}},{"$f":"K6*M6","v":{"v":0,"d":"0.00"}},{"$f":"ROUND($Q$2/2,2)","v":{"v":0,"d":"0.00"}},{"$f":"N6","v":{"v":0,"d":"0.00"}},{"$f":"K6*Q6","v":{"v":0,"d":"0.00"}}]
["Datum activiteit:",null,{"$f":"'menu''s'!F101","v":"00:00:00"},null,"email klant:",{"$f":"'menu''s'!F114","v":0},{"$nulls":3},"JR 1/3",{"$f":"D11","v":0},{"$f":"E11","v":{"v":0,"d":"0.00"}},{"$f":"ROUND((L7-$Q$2/3)*0.65,2)","v":{"v":0,"d":"0.00"}},{"$f":"L7-M7","v":{"v":0,"d":"0.00"}},{"$f":"K7*M7","v":{"v":0,"d":"0.00"}},{"$f":"ROUND($Q$2/3,2)","v":{"v":0,"d":"0.00"}},{"$f":"N7","v":{"v":0,"d":"0.00"}},{"$f":"K7*Q7","v":{"v":0,"d":"0.00"}}]
["Totaal aantal personen:",null,null,{"$f":"D9+D10+D11+D12","v":0},"prijs:",null,"aankomst om:",{"$f":"'menu''s'!F108","v":0},null,"JR gratis",{"$f":"D12","v":0},{"$f":"E12","v":"0,00"},{"$f":"L8*0.65","v":0},{"$f":"L8*0.35","v":{"v":0,"d":"0.00"}},{"$f":"K8*M8","v":{"v":0,"d":"0.00"}},null,{"$f":"N8+P8","v":0},{"$f":"K8*Q8","v":{"v":0,"d":"0.00"}}]
[null,null,"volwassenen:",{"$f":"'menu''s'!F103","v":0},{"$f":"'menu''s'!D7","v":{"v":0,"d":"0.00"}},null,"aan tafel om:",{"$f":"'menu''s'!F109","v":0},{"$nulls":3},"Voorschot reeds betaald:",null,"waarde:",{"$f":"ROUND(M9/98*100,2)","v":0},{"$f":"IF(Q9>0,\"Huur zaal/exclusiviteit \",\"\")","v":""},{"$f":"+H12","v":{"v":0,"d":"0.00"}}]
[null,null,"JR 1/2 (6 t.e.m. 11) :",{"$f":"'menu''s'!F104","v":0},{"$f":"'menu''s'!J7","v":{"v":0,"d":"0.00"}},null,"raming totaal 1:",{"$f":"D9*E9+D10*E10+D11*E11+D12*E12","v":{"v":0,"d":"€ 0.00"}},{"$nulls":3},"Gestort / betaald op:"]
[null,null,"JR 1/3 (3 t.e.m. 5) :",{"$f":"'menu''s'!F105","v":0},{"$f":"'menu''s'!H7","v":{"v":0,"d":"0.00"}},null,"ander rekenblad:",{"$f":"'menu''s'!F115","v":{"v":0,"d":"€ 0.00"}},{"$nulls":3},{"$f":"IF(O9>0,\"Voorschot uitgesplitst:\",\"\")","v":""},{"$f":"IF(O9>0,\" € \"&ROUND(O9*0.825,2) & \" x 6% => Dep. B  en € \" & ROUND(O9*0.175,2) & \" x 21% => Dep. A.\",\"\")","v":""}]
[null,null,"JR gratis (0 t.e.m. 2) :",{"$f":"'menu''s'!F106","v":0},{"$f":"'menu''s'!F7","v":"0,00"},null,"huur zaal:",{"$f":"IF(D8=0,0,IF((H10+H11)<matrixen!E4,(matrixen!E4-Reservatievoorstel!H10-Reservatievoorstel!H11),0))","v":{"v":0,"d":"€ 0.00"}},{"$nulls":4},"Voorschot wordt gesplitst over:",{"$f":"IF(O9>0,ROUNDUP(((O9+1)/L5),0),0)","v":0}," volwassenen"]
[{"$nulls":6},{"$f":"IF(H13>0,\"U koos exclusiviteit: \",\"\")","v":""},{"$f":"'menu''s'!F132","v":{"v":0,"d":"€ 0.00"}},null,"Input GKS:",null,null,{"$f":"IF(O9*0.825 >N12*M5,\"ONMOGELIJK U bekomt negatieve waarden.\",\"\")","v":""}]
[{"$nulls":6},"raming algemeen totaal:",{"$f":"H10+H11+H12+H13","v":{"v":0,"d":"€ 0.00"}},null,{"$f":"N12","v":0},"vol","x",{"$f":"IFERROR(ROUND(M5-O9*0.825/N12,2),\"\")","v":""},{"v":0.12,"d":"12%"},{"$f":"IFERROR(J14*M14,\"\")","v":""},"Dep. B","Verwerking voorschot"]
[{"$nulls":6},"raming te betalen indien contante betaling  (max € 3000 cash):",{"$f":"'menu''s'!F122","v":{"v":0,"d":"€ 0.00"}},null,{"$f":"IFERROR( \" Er wordt € \" & ROUND(O9*0.65/N12,2) & \" minder geboekt bij \" & N12 & \" personen omdat dit reeds als voorschot werd geboekt.\",\"\")","v":""}]
[{"$nulls":4},"Voorkeur tafelschikking:",{"$f":"'menu''s'!D127","v":"geen voorkeur"},{"$nulls":3},{"$f":"N12","v":0},"vol","x",{"$f":"IFERROR(ROUND(Q5-O9*0.175/N12,2),\"\")","v":""},{"v":0.21,"d":"21%"},{"$f":"IFERROR(J16*M16,\"\")","v":""},"Dep. A","Verwerking voorschot"]
[{"$nulls":5},{"$f":"'menu''s'!B20","v":"De gast die niet inbegrepen aperitief bestelt betaalt deze zelf (vb: sterke drank)"},{"$nulls":3},{"$f":"IFERROR( \" Er wordt € \" & ROUND(O9*0.35/N12,2) & \" minder geboekt bij \" & N12 & \" personen omdat dit reeds als voorschot werd geboekt.\",\"\")","v":""}]
[{"$f":"'menu''s'!H102","v":""},{"$nulls":7},{"$f":"IF(O9>0,\" Uw voorschot van € \" & O9 & \" wordt nog in mindering gebracht\",\"\")","v":""},{"$f":"K5-J14","v":0},{"$f":"K14","v":"vol"},"x",{"$f":"M5","v":{"v":0,"d":"0.00"}},{"$f":"N14","v":{"v":0.12,"d":"12%"}},{"$f":"J18*M18","v":{"v":0,"d":"0.00"}},"Dep. B"]
[{"$f":"'menu''s'!H103","v":""},null,{"$f":"IF(A31=\"\",\"Dit voorstel is voorlopig ongeldig, u moet nog een hoofdschotel selecteren\",\"\")","v":"Dit voorstel is voorlopig ongeldig, u moet nog een hoofdschotel selecteren"},{"$nulls":6},{"$f":"K5-J16","v":0},{"$f":"K16","v":"vol"},"x",{"$f":"Q5","v":{"v":0,"d":"0.00"}},{"v":0.21,"d":"21%"},{"v":0,"d":"0.00"},"Dep. A"]
[{"$f":"R30","v":0},null,null,{"$f":"J29","v":""},{"$nulls":5},{"$f":"K6","v":0},{"$f":"J6","v":"JR 1/2"},"x",{"$f":"M6","v":{"v":0,"d":"0.00"}},{"$f":"N14","v":{"v":0.12,"d":"12%"}},{"v":0,"d":"0.00"},"Dep. B"]
[{"$f":"R31","v":0},{"$nulls":8},{"$f":"K6","v":0},{"$f":"J6","v":"JR 1/2"},"x",{"$f":"Q6","v":{"v":0,"d":"0.00"}},{"v":0.21,"d":"21%"},{"v":0,"d":"0.00"},"Dep. A"]
[{"$f":"R32","v":0},{"$nulls":7},{"$f":"'menu''s'!K97","v":"Voorkeur achtergrondmuziek:"},{"$f":"K7","v":0},{"$f":"J7","v":"JR 1/3"},"x",{"$f":"M7","v":{"v":0,"d":"0.00"}},{"$f":"N14","v":{"v":0.12,"d":"12%"}},{"v":0,"d":"0.00"},"Dep. B"]
[{"$f":"R33","v":0},{"$nulls":7},{"$f":"'menu''s'!L97","v":"Geen voorkeur"},{"$f":"K7","v":0},{"$f":"J7","v":"JR 1/3"},"x",{"$f":"Q7","v":{"v":0,"d":"0.00"}},{"v":0.21,"d":"21%"},{"v":0,"d":"0.00"},"Dep. A"]
[{"$f":"R34","v":0},{"$nulls":7},{"$f":"VLOOKUP(I23,matrixen!A500:B523,2,FALSE)","v":0},{"$f":"IF(L24>0,\"1\",0)","v":0},{"$f":"IF(L24>0,\"x\",\"\")","v":""},{"$f":"Q9","v":{"v":0,"d":"0.00"}},{"$f":"IF(L24>0,\"21%\",\"\")","v":""},{"$f":"IF(L24>0,\"Dep. A\",\"\")","v":""},{"$f":"P9","v":""}]
[{"$f":"'menu''s'!H109","v":""},{"$nulls":9},"Totale boekwaarde:",{"$f":"SUM(O14:O23)+L24+O9+H11","v":{"v":0,"d":"0.00"}},{"$f":"IF(SUM(O14:O23)+L24+O9+H11 <>H14,\" Er is iets fout met de splitsingstabel\",\"\")","v":""}]
[{"$f":"'menu''s'!H110","v":""},{"$nulls":8},{"$f":"\"De eventuele korting contant van 2 %, in het huidig voorstel is dit € \" & ROUND(H14-H15,2) & \" is nog niet in bovenstaande splitsing verwerkt.\"","v":"De eventuele korting contant van 2 %, in het huidig voorstel is dit € 0 is nog niet in bovenstaande splitsing verwerkt."}]
[{"$f":"'menu''s'!H111","v":""}]
[{"$f":"'menu''s'!H112","v":""},{"$nulls":8},{"$f":"IF(N28<>\"\",\"Detail van het aperitief:\",\"\")","v":""},{"$nulls":3},{"$f":"A18","v":""}]
[{"$f":"'menu''s'!H113","v":""},{"$nulls":8},{"$f":"'menu''s'!G24","v":""}]
[{"$f":"'menu''s'!H114","v":""},{"$nulls":8},{"$f":"'menu''s'!G13","v":0},{"$nulls":7},{"$f":"'menu''s'!F13","v":0}]
[{"$f":"'menu''s'!H115","v":""},{"$nulls":8},{"$f":"'menu''s'!G14","v":0},{"$nulls":7},{"$f":"'menu''s'!F14","v":0}]
[{"$f":"'menu''s'!H116","v":""},null,{"$f":"'menu''s'!J116","v":""},{"$nulls":6},{"$f":"'menu''s'!G15","v":0},{"$nulls":7},{"$f":"'menu''s'!F15","v":0}]
[{"$f":"'menu''s'!H117","v":""},{"$nulls":3},{"$f":"'menu''s'!L117","v":""},{"$nulls":4},{"$f":"'menu''s'!G16","v":0},{"$nulls":5},{"$f":"'menu''s'!F18","v":0},null,{"$f":"'menu''s'!F16","v":0}]
[{"$f":"'menu''s'!H118","v":""},{"$nulls":3},{"$f":"'menu''s'!L118","v":""},{"$nulls":4},{"$f":"'menu''s'!G17","v":0},{"$nulls":7},{"$f":"'menu''s'!F17","v":0}]
[{"$f":"'menu''s'!H119","v":""},{"$nulls":8},{"$f":"'menu''s'!G18","v":0},{"$nulls":3},{"$f":"IF(OR('menu''s'!F90<>\"\",'menu''s'!F91<>\"\",'menu''s'!F92<>\"\",'menu''s'!F93<>\"\"),\"U koos volgende Late night snack(s):\",\"\")","v":""}]
[{"$f":"'menu''s'!H120","v":"Nog geen dessert geselecteerd"},{"$nulls":7},{"$f":"'menu''s'!H121","v":""},{"$f":"'menu''s'!G19","v":0},{"$nulls":3},{"$f":"'menu''s'!F90","v":0}]
[{"$f":"'menu''s'!B96","v":"Alle drank na de maaltijd komt op één rekening en wordt door de organisator van het feest betaald"},{"$nulls":8},{"$f":"'menu''s'!G20","v":0},{"$nulls":7},{"$f":"'menu''s'!F91:H91","v":0},0,0]
[null,{"$f":"'menu''s'!F97","v":"Feest met discobar: "},{"$f":"'menu''s'!G97","v":"nee"},null,{"$f":"'menu''s'!J95","v":"Halal bereidingen: "},{"$f":"'menu''s'!K95","v":"nee"},null,{"$f":"'menu''s'!F95","v":"Vegetariërs: "},{"$f":"'menu''s'!G95","v":"nee"},{"$f":"'menu''s'!G21","v":0},{"$nulls":7},{"$f":"'menu''s'!F92:H92","v":0},0,0]
["Factuur: ",{"$f":"'menu''s'!D131","v":"nee"},null,null,{"$f":"'menu''s'!H97","v":"Allergenen: "},{"$f":"'menu''s'!I97","v":"nee"},null,{"$f":"'menu''s'!H95","v":"Speciale dieten: "},{"$f":"'menu''s'!I95","v":"nee"},{"$f":"'menu''s'!G22","v":0},{"$nulls":7},{"$f":"'menu''s'!F93:H93","v":0},0,0]
[{"$f":"'menu''s'!B129","v":"Betaling op de dag zelf (cash of bancontact), u bekomt 2% korting op het totaal"},{"$nulls":8},{"$f":"'menu''s'!G23","v":0}]
[]
[{"$f":"\"Opmerking: \" &'menu''s'!F125","v":"Opmerking: "},{"$nulls":8},{"$f":"IF(A36<>\"\",\"Detail van het dessert:\",\"\")","v":"Detail van het dessert:"}]
[{"$nulls":9},{"$f":"IF($A$36=matrixen!$B$71,'menu''s'!B84,'menu''s'!F81)","v":0}]
[{"$nulls":9},{"$f":"IF($A$36=matrixen!$B$71,'menu''s'!B85,'menu''s'!F82)","v":0}]
["Het juiste aantal EN de gewenste tafelschikking moet ons meegedeeld worden ten laatste op: ",{"$nulls":7},{"$f":"C7-9","v":-9},{"$f":"IF($A$36=matrixen!$B$71,'menu''s'!B86,'menu''s'!F83)","v":0}]
["Wijzigingen na deze datum van aantal en/of tafelschikking hebben prijsherzieningen tot gevolg!",{"$nulls":8},{"$f":"IF($A$36=matrixen!$B$71,'menu''s'!B87,'menu''s'!F84)","v":0}]
["Dit aantal geldt als minimum voor facturatie. Verdere verkoopsvoorwaarden op een ander werkblad. ",{"$nulls":8},{"$f":"IF($A$36=matrixen!$B$71,'menu''s'!B88,'menu''s'!F85)","v":0}]
["Vergeet ze niet te lezen.",{"$nulls":6},{"$f":"'menu''s'!B126","v":"Gaat u akkoord met de algemene verkoopsvoorwaarden?"},{"$f":"'menu''s'!D126","v":"ja"},{"$f":"IF($A$36=matrixen!$B$71,'menu''s'!B89,'menu''s'!F86)","v":0}]
["Handtekening der beide partijen voor akkoord:",{"$nulls":8},{"$f":"IF($A$36=matrixen!$B$71,'menu''s'!B90,'menu''s'!F87)","v":""}]
[null,null,"De klant",{"$nulls":4},"Het Katelijnenhof",null,{"$f":"IF($A$36=matrixen!$B$71,'menu''s'!B91,'menu''s'!F88)","v":""}]